Workbook

Sheet 1. Herd Entry
B1: Number
A2: Dairy cow | B2: 100
A3: Slaughtered Cow
A4: Slaughtered Heifer
A5: Slaughtered Bullocks and Bulls
A6: Slaughtered Calves and Young Cattle
A7: Total PCU (Kg) | B7: =(A12*B2)+(A13*B3)+(A14*B4)+(A15*B5)+(A16*B6) -> 42500
A11: Weight (Kg)
A12: 425
A13: 425
A14: 200
A15: 425
A16: 140

Sheet 2. Basic calculator
E1: TOTAL | F1: Critical
C2: Total mg/PCU in herd | E2: =(SUM(E7:E57)) -> 0.3529411765 | F2: =SUM(J30:J34) -> 0
C3: Total DDD | E3: ='3. DDD DCD'!H7 -> 0.04252303331 | F3: ='3. DDD DCD'!I7 -> 0
C4: Total DCD | E4: ='3. DDD DCD'!J7 -> 0.0121703854 | F4: ='3. DDD DCD'!K7 -> 0
A6: Route | B6: Product | C6: Amount used | D6: Units | E6: mg/PCU | F6: Critically important?
A7: Injectable | B7: Betamox 150mg/ml Suspension for Injection | C7: 100 | D7: =IF(B7="","",VLOOKUP(B7,All,9,FALSE)) -> ml | E7: =IF(B7="","",(C7*(VLOOKUP(B7,All,8,FALSE))/('1. Herd Entry'!$B$7))) -> 0.3529411765 | F7: =IF(B7="","",IF((VLOOKUP(B7,All,7,FALSE)>0),"CRITICAL","")) -> 
E8: =IF(B8="","",(C8*(VLOOKUP(B8,All,8,FALSE))/('1. Herd Entry'!$B$7))) ->  | F8: =IF(B8="","",IF((VLOOKUP(B8,All,7,FALSE)>0),"CRITICAL","")) -> 
D9: =IF(B9="","",VLOOKUP(B9,All,9,FALSE)) ->  | E9: =IF(B9="","",(C9*(VLOOKUP(B9,All,8,FALSE))/('1. Herd Entry'!$B$7))) ->  | F9: =IF(B9="","",IF((VLOOKUP(B9,All,7,FALSE)>0),"CRITICAL","")) -> 
E10: =IF(B10="","",(C10*(VLOOKUP(B10,All,8,FALSE))/('1. Herd Entry'!$B$7))) -> 
E11: =IF(B11="","",(C11*(VLOOKUP(B11,All,8,FALSE))/('1. Herd Entry'!$B$7))) -> 
E12: =IF(B12="","",(C12*(VLOOKUP(B12,All,8,FALSE))/('1. Herd Entry'!$B$7))) -> 
E13: =IF(B13="","",(C13*(VLOOKUP(B13,All,8,FALSE))/('1. Herd Entry'!$B$7))) -> 
E14: =IF(B14="","",(C14*(VLOOKUP(B14,All,8,FALSE))/('1. Herd Entry'!$B$7))) -> 
E15: =IF(B15="","",(C15*(VLOOKUP(B15,All,8,FALSE))/('1. Herd Entry'!$B$7))) -> 
E16: =IF(B16="","",(C16*(VLOOKUP(B16,All,8,FALSE))/('1. Herd Entry'!$B$7))) -> 
E17: =IF(B17="","",(C17*(VLOOKUP(B17,All,8,FALSE))/('1. Herd Entry'!$B$7))) -> 
E18: =IF(B18="","",(C18*(VLOOKUP(B18,All,8,FALSE))/('1. Herd Entry'!$B$7))) -> 
E19: =IF(B19="","",(C19*(VLOOKUP(B19,All,8,FALSE))/('1. Herd Entry'!$B$7))) -> 
E20: =IF(B20="","",(C20*(VLOOKUP(B20,All,8,FALSE))/('1. Herd Entry'!$B$7))) -> 
E21: =IF(B21="","",(C21*(VLOOKUP(B21,All,8,FALSE))/('1. Herd Entry'!$B$7))) -> 
E22: =IF(B22="","",(C22*(VLOOKUP(B22,All,8,FALSE))/('1. Herd Entry'!$B$7))) -> 
E23: =IF(B23="","",(C23*(VLOOKUP(B23,All,8,FALSE))/('1. Herd Entry'!$B$7))) -> 
E24: =IF(B24="","",(C24*(VLOOKUP(B24,All,8,FALSE))/('1. Herd Entry'!$B$7))) -> 
E25: =IF(B25="","",(C25*(VLOOKUP(B25,All,8,FALSE))/('1. Herd Entry'!$B$7))) -> 
E26: =IF(B26="","",(C26*(VLOOKUP(B26,All,8,FALSE))/('1. Herd Entry'!$B$7))) -> 
E27: =IF(B27="","",(C27*(VLOOKUP(B27,All,8,FALSE))/('1. Herd Entry'!$B$7))) -> 
E28: =IF(B28="","",(C28*(VLOOKUP(B28,All,8,FALSE))/('1. Herd Entry'!$B$7))) -> 
E29: =IF(B29="","",(C29*(VLOOKUP(B29,All,8,FALSE))/('1. Herd Entry'!$B$7))) ->  | J29: Critically important
E30: =IF(B30="","",(C30*(VLOOKUP(B30,All,8,FALSE))/('1. Herd Entry'!$B$7))) ->  | G30: Injectable | H30: =SUMIFS($E$7:$E$57,$F$7:$F$57,"",$A$7:$A$57,$G30) -> 0.3529411765 | J30: =SUMIFS($E$7:$E$57,$F$7:$F$57,"CRITICAL",$A$7:$A$57,$G30) -> 0
E31: =IF(B31="","",(C31*(VLOOKUP(B31,All,8,FALSE))/('1. Herd Entry'!$B$7))) ->  | G31: Lactatingtube | H31: =SUMIFS($E$7:$E$57,$F$7:$F$57,"",$A$7:$A$57,$G31) -> 0 | J31: =SUMIFS($E$7:$E$57,$F$7:$F$57,"CRITICAL",$A$7:$A$57,$G31) -> 0
E32: =IF(B32="","",(C32*(VLOOKUP(B32,All,8,FALSE))/('1. Herd Entry'!$B$7))) ->  | G32: Drytube | H32: 0 | J32: 0
E33: =IF(B33="","",(C33*(VLOOKUP(B33,All,8,FALSE))/('1. Herd Entry'!$B$7))) ->  | G33: Footbath | H33: 0 | J33: 0
E34: =IF(B34="","",(C34*(VLOOKUP(B34,All,8,FALSE))/('1. Herd Entry'!$B$7))) ->  | G34: Other | H34: =SUMIFS($E$7:$E$57,$F$7:$F$57,"",$A$7:$A$57,$G34) -> 0 | J34: 0
E35: =IF(B35="","",(C35*(VLOOKUP(B35,All,8,FALSE))/('1. Herd Entry'!$B$7))) -> 
E36: =IF(B36="","",(C36*(VLOOKUP(B36,All,8,FALSE))/('1. Herd Entry'!$B$7))) -> 
E37: =IF(B37="","",(C37*(VLOOKUP(B37,All,8,FALSE))/('1. Herd Entry'!$B$7))) -> 
E38: =IF(B38="","",(C38*(VLOOKUP(B38,All,8,FALSE))/('1. Herd Entry'!$B$7))) -> 
E39: =IF(B39="","",(C39*(VLOOKUP(B39,All,8,FALSE))/('1. Herd Entry'!$B$7))) -> 
E40: =IF(B40="","",(C40*(VLOOKUP(B40,All,8,FALSE))/('1. Herd Entry'!$B$7))) -> 
E41: =IF(B41="","",(C41*(VLOOKUP(B41,All,8,FALSE))/('1. Herd Entry'!$B$7))) -> 
E42: =IF(B42="","",(C42*(VLOOKUP(B42,All,8,FALSE))/('1. Herd Entry'!$B$7))) -> 
E43: =IF(B43="","",(C43*(VLOOKUP(B43,All,8,FALSE))/('1. Herd Entry'!$B$7))) -> 
E44: =IF(B44="","",(C44*(VLOOKUP(B44,All,8,FALSE))/('1. Herd Entry'!$B$7))) -> 
E45: =IF(B45="","",(C45*(VLOOKUP(B45,All,8,FALSE))/('1. Herd Entry'!$B$7))) -> 
E46: =IF(B46="","",(C46*(VLOOKUP(B46,All,8,FALSE))/('1. Herd Entry'!$B$7))) -> 
E47: =IF(B47="","",(C47*(VLOOKUP(B47,All,8,FALSE))/('1. Herd Entry'!$B$7))) -> 
E48: =IF(B48="","",(C48*(VLOOKUP(B48,All,8,FALSE))/('1. Herd Entry'!$B$7))) -> 
E49: =IF(B49="","",(C49*(VLOOKUP(B49,All,8,FALSE))/('1. Herd Entry'!$B$7))) -> 
E50: =IF(B50="","",(C50*(VLOOKUP(B50,All,8,FALSE))/('1. Herd Entry'!$B$7))) -> 
E51: =IF(B51="","",(C51*(VLOOKUP(B51,All,8,FALSE))/('1. Herd Entry'!$B$7))) -> 
E52: =IF(B52="","",(C52*(VLOOKUP(B52,All,8,FALSE))/('1. Herd Entry'!$B$7))) -> 
E53: =IF(B53="","",(C53*(VLOOKUP(B53,All,8,FALSE))/('1. Herd Entry'!$B$7))) -> 
E54: =IF(B54="","",(C54*(VLOOKUP(B54,All,8,FALSE))/('1. Herd Entry'!$B$7))) -> 
E55: =IF(B55="","",(C55*(VLOOKUP(B55,All,8,FALSE))/('1. Herd Entry'!$B$7))) -> 
E56: =IF(B56="","",(C56*(VLOOKUP(B56,All,8,FALSE))/('1. Herd Entry'!$B$7))) -> 
E57: =IF(B57="","",(C57*(VLOOKUP(B57,All,8,FALSE))/('1. Herd Entry'!$B$7))) -> 

Sheet 3. DDD DCD
H1: DDD | I1: DDDcritical | J1: DCD | K1: DCDcritical
E2: Injectable per kg | H2: =C71 -> 0.04252303331 | I2: =E71 -> 0 | J2: =G71 -> 0.0121703854 | K2: =I71 -> 0
E3: Lactatingtube per cow | H3: =D72 -> 0 | I3: =E72 -> 0 | J3: =H72 -> 0 | K3: =I72 -> 0
E4: Drytube per cow | H4: NA | I4: NA | J4: =H73 -> 0 | K4: =I73 -> 0
E5: Footbath per cow | H5: =D74 -> 0 | I5: =E74 -> 0 | J5: =H74 -> 0 | K5: =I74 -> 0
E6: Other per kg | H6: =C75 -> 0 | I6: =E75 -> 0 | J6: =G75 -> 0 | K6: =I75 -> 0
E7: TOTAL | H7: =H2+H3+H6+H5 -> 0.04252303331 | I7: =SUM(I2:I3,I5:I6) -> 0 | J7: =SUM(J2:J5) -> 0.0121703854 | K7: =SUM(K2:K6) -> 0
J10: Total | K10: Critical
G11: Total mg/PCU in herd | J11: =(SUM(G15:G65)) -> 0.3529411765 | K11: =SUM(D79:D83) -> 0
G12: Total DDD | J12: =H7 -> 0.04252303331 | K12: =I7 -> 0
A14: Route | B14: Product | D14: Amount used | E14: Units | F14: mg | G14: mg/PCU | H14: DDDvet | I14: DCDvet | J14: Per | K14: Critically important? | Q14: DDDvet | R14: DCDvet | S14: per
A15: =IF('2. Basic calculator'!A7="","",'2. Basic calculator'!A7) -> Injectable | B15: =IF('2. Basic calculator'!B7="","",'2. Basic calculator'!B7) -> Betamox 150mg/ml Suspension for Injection | D15: =IF('2. Basic calculator'!C7="","",'2. Basic calculator'!C7) -> 100 | E15: =IF('2. Basic calculator'!D7="","",'2. Basic calculator'!D7) -> ml | F15: =IF(B15="","",D15*VLOOKUP(B15,All,8,FALSE)) -> 15000 | G15: =IF('2. Basic calculator'!E7="","",'2. Basic calculator'!E7) -> 0.3529411765 | H15: =IF(A15="","",IF(A15="lactatingtube",D15/Q15/'1. Herd Entry'!$B$2,IF('3. DDD DCD'!A15="drytube","",IF(A15="Footbath",F15/Q15/'1. Herd Entry'!$B$2,IF(B15='Sheet 5'!$A$127,D15/'1. Herd Entry'!$B$2,IF(A15="other",G15/Q15,IF(S15="kg",G15/Q15,""))))))) -> 0.04252303331 | I15: =IF(A15="","",IF(A15="lactatingtube",D15/R15/'1. Herd Entry'!$B$2,IF('3. DDD DCD'!A15="drytube",D15/R15/'1. Herd Entry'!$B$2,IF(A15="Footbath",H15,IF(B15='Sheet 5'!$A$127,D15/R15/'1. Herd Entry'!$B$2,IF(A15="other",G15/R15,IF(S15="kg",G15/R15,""))))))) -> 0.0121703854 | J15: =IF(A15="","",IF(A15="Footbath","Cow",IF(B15='Sheet 5'!$A$127,"Cow",IF(A15="other","PCU",IF(S15="kg","PCU",IF(S15="unit","Cow"," ")))))) -> PCU | K15: =IF(B15="","",IF((VLOOKUP(B15,All,7,FALSE)>0),"CRITICAL","")) ->  | Q15: =IF(A15="","",VLOOKUP(B15,All,10,FALSE)) -> 8.3 | R15: =IF(A15="","",VLOOKUP(B15,All,11,FALSE)) -> 29 | S15: =IF(E15="","",IF(E15="ml","kg",IF(E15="grams","kg","unit"))) -> kg
A16: =IF('2. Basic calculator'!A8="","",'2. Basic calculator'!A8) ->  | B16: =IF('2. Basic calculator'!B8="","",'2. Basic calculator'!B8) ->  | D16: =IF('2. Basic calculator'!C8="","",'2. Basic calculator'!C8) ->  | E16: =IF('2. Basic calculator'!D8="","",'2. Basic calculator'!D8) ->  | G16: =IF('2. Basic calculator'!E8="","",'2. Basic calculator'!E8) ->  | H16: =IF(A16="","",IF(A16="lactatingtube",D16/Q16/'1. Herd Entry'!$B$2,IF('3. DDD DCD'!A16="drytube","",IF(A16="Footbath",F16/Q16/'1. Herd Entry'!$B$2,IF(B16='Sheet 5'!$A$127,D16/'1. Herd Entry'!$B$2,IF(A16="other",G16/Q16,IF(S16="kg",G16/Q16,""))))))) ->  | I16: =IF(A16="","",IF(A16="lactatingtube",D16/R16/'1. Herd Entry'!$B$2,IF('3. DDD DCD'!A16="drytube",D16/R16/'1. Herd Entry'!$B$2,IF(A16="Footbath",H16,IF(B16='Sheet 5'!$A$127,D16/R16/'1. Herd Entry'!$B$2,IF(A16="other",G16/R16,IF(S16="kg",G16/R16,""))))))) ->  | J16: =IF(A16="","",IF(A16="Footbath","Cow",IF(B16='Sheet 5'!$A$127,"Cow",IF(A16="other","PCU",IF(S16="kg","PCU",IF(S16="unit","Cow"," ")))))) -> 
A17: =IF('2. Basic calculator'!A9="","",'2. Basic calculator'!A9) ->  | B17: =IF('2. Basic calculator'!B9="","",'2. Basic calculator'!B9) ->  | D17: =IF('2. Basic calculator'!C9="","",'2. Basic calculator'!C9) ->  | E17: =IF('2. Basic calculator'!D9="","",'2. Basic calculator'!D9) ->  | G17: =IF('2. Basic calculator'!E9="","",'2. Basic calculator'!E9) ->  | H17: =IF(A17="","",IF(A17="lactatingtube",D17/Q17/'1. Herd Entry'!$B$2,IF('3. DDD DCD'!A17="drytube","",IF(A17="Footbath",F17/Q17/'1. Herd Entry'!$B$2,IF(B17='Sheet 5'!$A$127,D17/'1. Herd Entry'!$B$2,IF(A17="other",G17/Q17,IF(S17="kg",G17/Q17,""))))))) ->  | I17: =IF(A17="","",IF(A17="lactatingtube",D17/R17/'1. Herd Entry'!$B$2,IF('3. DDD DCD'!A17="drytube",D17/R17/'1. Herd Entry'!$B$2,IF(A17="Footbath",H17,IF(B17='Sheet 5'!$A$127,D17/R17/'1. Herd Entry'!$B$2,IF(A17="other",G17/R17,IF(S17="kg",G17/R17,""))))))) ->  | J17: =IF(A17="","",IF(A17="Footbath","Cow",IF(B17='Sheet 5'!$A$127,"Cow",IF(A17="other","PCU",IF(S17="kg","PCU",IF(S17="unit","Cow"," ")))))) ->  | S17: =IF(E17="","",IF(E17="ml","kg",IF(E17="grams","kg","unit"))) -> 
A18: =IF('2. Basic calculator'!A10="","",'2. Basic calculator'!A10) ->  | B18: =IF('2. Basic calculator'!B10="","",'2. Basic calculator'!B10) ->  | D18: =IF('2. Basic calculator'!C10="","",'2. Basic calculator'!C10) ->  | E18: =IF('2. Basic calculator'!D10="","",'2. Basic calculator'!D10) ->  | G18: =IF('2. Basic calculator'!E10="","",'2. Basic calculator'!E10) ->  | H18: =IF(A18="","",IF(A18="lactatingtube",D18/Q18/'1. Herd Entry'!$B$2,IF('3. DDD DCD'!A18="drytube","",IF(A18="Footbath",F18/Q18/'1. Herd Entry'!$B$2,IF(B18='Sheet 5'!$A$127,D18/'1. Herd Entry'!$B$2,IF(A18="other",G18/Q18,IF(S18="kg",G18/Q18,""))))))) ->  | I18: =IF(A18="","",IF(A18="lactatingtube",D18/R18/'1. Herd Entry'!$B$2,IF('3. DDD DCD'!A18="drytube",D18/R18/'1. Herd Entry'!$B$2,IF(A18="Footbath",H18,IF(B18='Sheet 5'!$A$127,D18/R18/'1. Herd Entry'!$B$2,IF(A18="other",G18/R18,IF(S18="kg",G18/R18,""))))))) ->  | J18: =IF(A18="","",IF(A18="Footbath","Cow",IF(B18='Sheet 5'!$A$127,"Cow",IF(A18="other","PCU",IF(S18="kg","PCU",IF(S18="unit","Cow"," ")))))) -> 
A19: =IF('2. Basic calculator'!A11="","",'2. Basic calculator'!A11) ->  | B19: =IF('2. Basic calculator'!B11="","",'2. Basic calculator'!B11) ->  | D19: =IF('2. Basic calculator'!C11="","",'2. Basic calculator'!C11) ->  | E19: =IF('2. Basic calculator'!D11="","",'2. Basic calculator'!D11) ->  | G19: =IF('2. Basic calculator'!E11="","",'2. Basic calculator'!E11) ->  | H19: =IF(A19="","",IF(A19="lactatingtube",D19/Q19/'1. Herd Entry'!$B$2,IF('3. DDD DCD'!A19="drytube","",IF(A19="Footbath",F19/Q19/'1. Herd Entry'!$B$2,IF(B19='Sheet 5'!$A$127,D19/'1. Herd Entry'!$B$2,IF(A19="other",G19/Q19,IF(S19="kg",G19/Q19,""))))))) ->  | I19: =IF(A19="","",IF(A19="lactatingtube",D19/R19/'1. Herd Entry'!$B$2,IF('3. DDD DCD'!A19="drytube",D19/R19/'1. Herd Entry'!$B$2,IF(A19="Footbath",H19,IF(B19='Sheet 5'!$A$127,D19/R19/'1. Herd Entry'!$B$2,IF(A19="other",G19/R19,IF(S19="kg",G19/R19,""))))))) ->  | J19: =IF(A19="","",IF(A19="Footbath","Cow",IF(B19='Sheet 5'!$A$127,"Cow",IF(A19="other","PCU",IF(S19="kg","PCU",IF(S19="unit","Cow"," ")))))) -> 
A20: =IF('2. Basic calculator'!A12="","",'2. Basic calculator'!A12) ->  | B20: =IF('2. Basic calculator'!B12="","",'2. Basic calculator'!B12) ->  | D20: =IF('2. Basic calculator'!C12="","",'2. Basic calculator'!C12) ->  | E20: =IF('2. Basic calculator'!D12="","",'2. Basic calculator'!D12) ->  | G20: =IF('2. Basic calculator'!E12="","",'2. Basic calculator'!E12) ->  | H20: =IF(A20="","",IF(A20="lactatingtube",D20/Q20/'1. Herd Entry'!$B$2,IF('3. DDD DCD'!A20="drytube","",IF(A20="Footbath",F20/Q20/'1. Herd Entry'!$B$2,IF(B20='Sheet 5'!$A$127,D20/'1. Herd Entry'!$B$2,IF(A20="other",G20/Q20,IF(S20="kg",G20/Q20,""))))))) ->  | I20: =IF(A20="","",IF(A20="lactatingtube",D20/R20/'1. Herd Entry'!$B$2,IF('3. DDD DCD'!A20="drytube",D20/R20/'1. Herd Entry'!$B$2,IF(A20="Footbath",H20,IF(B20='Sheet 5'!$A$127,D20/R20/'1. Herd Entry'!$B$2,IF(A20="other",G20/R20,IF(S20="kg",G20/R20,""))))))) ->  | J20: =IF(A20="","",IF(A20="Footbath","Cow",IF(B20='Sheet 5'!$A$127,"Cow",IF(A20="other","PCU",IF(S20="kg","PCU",IF(S20="unit","Cow"," ")))))) -> 
A21: =IF('2. Basic calculator'!A13="","",'2. Basic calculator'!A13) ->  | B21: =IF('2. Basic calculator'!B13="","",'2. Basic calculator'!B13) ->  | D21: =IF('2. Basic calculator'!C13="","",'2. Basic calculator'!C13) ->  | E21: =IF('2. Basic calculator'!D13="","",'2. Basic calculator'!D13) ->  | G21: =IF('2. Basic calculator'!E13="","",'2. Basic calculator'!E13) ->  | H21: =IF(A21="","",IF(A21="lactatingtube",D21/Q21/'1. Herd Entry'!$B$2,IF('3. DDD DCD'!A21="drytube","",IF(A21="Footbath",F21/Q21/'1. Herd Entry'!$B$2,IF(B21='Sheet 5'!$A$127,D21/'1. Herd Entry'!$B$2,IF(A21="other",G21/Q21,IF(S21="kg",G21/Q21,""))))))) ->  | I21: =IF(A21="","",IF(A21="lactatingtube",D21/R21/'1. Herd Entry'!$B$2,IF('3. DDD DCD'!A21="drytube",D21/R21/'1. Herd Entry'!$B$2,IF(A21="Footbath",H21,IF(B21='Sheet 5'!$A$127,D21/R21/'1. Herd Entry'!$B$2,IF(A21="other",G21/R21,IF(S21="kg",G21/R21,""))))))) ->  | J21: =IF(A21="","",IF(A21="Footbath","Cow",IF(B21='Sheet 5'!$A$127,"Cow",IF(A21="other","PCU",IF(S21="kg","PCU",IF(S21="unit","Cow"," ")))))) -> 
A22: =IF('2. Basic calculator'!A14="","",'2. Basic calculator'!A14) ->  | B22: =IF('2. Basic calculator'!B14="","",'2. Basic calculator'!B14) ->  | D22: =IF('2. Basic calculator'!C14="","",'2. Basic calculator'!C14) ->  | E22: =IF('2. Basic calculator'!D14="","",'2. Basic calculator'!D14) ->  | G22: =IF('2. Basic calculator'!E14="","",'2. Basic calculator'!E14) ->  | H22: =IF(A22="","",IF(A22="lactatingtube",D22/Q22/'1. Herd Entry'!$B$2,IF('3. DDD DCD'!A22="drytube","",IF(A22="Footbath",F22/Q22/'1. Herd Entry'!$B$2,IF(B22='Sheet 5'!$A$127,D22/'1. Herd Entry'!$B$2,IF(A22="other",G22/Q22,IF(S22="kg",G22/Q22,""))))))) ->  | I22: =IF(A22="","",IF(A22="lactatingtube",D22/R22/'1. Herd Entry'!$B$2,IF('3. DDD DCD'!A22="drytube",D22/R22/'1. Herd Entry'!$B$2,IF(A22="Footbath",H22,IF(B22='Sheet 5'!$A$127,D22/R22/'1. Herd Entry'!$B$2,IF(A22="other",G22/R22,IF(S22="kg",G22/R22,""))))))) ->  | J22: =IF(A22="","",IF(A22="Footbath","Cow",IF(B22='Sheet 5'!$A$127,"Cow",IF(A22="other","PCU",IF(S22="kg","PCU",IF(S22="unit","Cow"," ")))))) -> 
A23: =IF('2. Basic calculator'!A15="","",'2. Basic calculator'!A15) ->  | B23: =IF('2. Basic calculator'!B15="","",'2. Basic calculator'!B15) ->  | D23: =IF('2. Basic calculator'!C15="","",'2. Basic calculator'!C15) ->  | E23: =IF('2. Basic calculator'!D15="","",'2. Basic calculator'!D15) ->  | G23: =IF('2. Basic calculator'!E15="","",'2. Basic calculator'!E15) ->  | H23: =IF(A23="","",IF(A23="lactatingtube",D23/Q23/'1. Herd Entry'!$B$2,IF('3. DDD DCD'!A23="drytube","",IF(A23="Footbath",F23/Q23/'1. Herd Entry'!$B$2,IF(B23='Sheet 5'!$A$127,D23/'1. Herd Entry'!$B$2,IF(A23="other",G23/Q23,IF(S23="kg",G23/Q23,""))))))) ->  | I23: =IF(A23="","",IF(A23="lactatingtube",D23/R23/'1. Herd Entry'!$B$2,IF('3. DDD DCD'!A23="drytube",D23/R23/'1. Herd Entry'!$B$2,IF(A23="Footbath",H23,IF(B23='Sheet 5'!$A$127,D23/R23/'1. Herd Entry'!$B$2,IF(A23="other",G23/R23,IF(S23="kg",G23/R23,""))))))) ->  | J23: =IF(A23="","",IF(A23="Footbath","Cow",IF(B23='Sheet 5'!$A$127,"Cow",IF(A23="other","PCU",IF(S23="kg","PCU",IF(S23="unit","Cow"," ")))))) -> 
A24: =IF('2. Basic calculator'!A16="","",'2. Basic calculator'!A16) ->  | B24: =IF('2. Basic calculator'!B16="","",'2. Basic calculator'!B16) ->  | D24: =IF('2. Basic calculator'!C16="","",'2. Basic calculator'!C16) ->  | E24: =IF('2. Basic calculator'!D16="","",'2. Basic calculator'!D16) ->  | G24: =IF('2. Basic calculator'!E16="","",'2. Basic calculator'!E16) ->  | H24: =IF(A24="","",IF(A24="lactatingtube",D24/Q24/'1. Herd Entry'!$B$2,IF('3. DDD DCD'!A24="drytube","",IF(A24="Footbath",F24/Q24/'1. Herd Entry'!$B$2,IF(B24='Sheet 5'!$A$127,D24/'1. Herd Entry'!$B$2,IF(A24="other",G24/Q24,IF(S24="kg",G24/Q24,""))))))) ->  | I24: =IF(A24="","",IF(A24="lactatingtube",D24/R24/'1. Herd Entry'!$B$2,IF('3. DDD DCD'!A24="drytube",D24/R24/'1. Herd Entry'!$B$2,IF(A24="Footbath",H24,IF(B24='Sheet 5'!$A$127,D24/R24/'1. Herd Entry'!$B$2,IF(A24="other",G24/R24,IF(S24="kg",G24/R24,""))))))) ->  | J24: =IF(A24="","",IF(A24="Footbath","Cow",IF(B24='Sheet 5'!$A$127,"Cow",IF(A24="other","PCU",IF(S24="kg","PCU",IF(S24="unit","Cow"," ")))))) -> 
A25: =IF('2. Basic calculator'!A17="","",'2. Basic calculator'!A17) ->  | B25: =IF('2. Basic calculator'!B17="","",'2. Basic calculator'!B17) ->  | D25: =IF('2. Basic calculator'!C17="","",'2. Basic calculator'!C17) ->  | E25: =IF('2. Basic calculator'!D17="","",'2. Basic calculator'!D17) ->  | G25: =IF('2. Basic calculator'!E17="","",'2. Basic calculator'!E17) ->  | H25: =IF(A25="","",IF(A25="lactatingtube",D25/Q25/'1. Herd Entry'!$B$2,IF('3. DDD DCD'!A25="drytube","",IF(A25="Footbath",F25/Q25/'1. Herd Entry'!$B$2,IF(B25='Sheet 5'!$A$127,D25/'1. Herd Entry'!$B$2,IF(A25="other",G25/Q25,IF(S25="kg",G25/Q25,""))))))) ->  | I25: =IF(A25="","",IF(A25="lactatingtube",D25/R25/'1. Herd Entry'!$B$2,IF('3. DDD DCD'!A25="drytube",D25/R25/'1. Herd Entry'!$B$2,IF(A25="Footbath",H25,IF(B25='Sheet 5'!$A$127,D25/R25/'1. Herd Entry'!$B$2,IF(A25="other",G25/R25,IF(S25="kg",G25/R25,""))))))) ->  | J25: =IF(A25="","",IF(A25="Footbath","Cow",IF(B25='Sheet 5'!$A$127,"Cow",IF(A25="other","PCU",IF(S25="kg","PCU",IF(S25="unit","Cow"," ")))))) ->  | K25: =IF(B25="","",IF((VLOOKUP(B25,All,7,FALSE)>0),"CRITICAL","")) -> 
A26: =IF('2. Basic calculator'!A18="","",'2. Basic calculator'!A18) ->  | B26: =IF('2. Basic calculator'!B18="","",'2. Basic calculator'!B18) ->  | D26: =IF('2. Basic calculator'!C18="","",'2. Basic calculator'!C18) ->  | E26: =IF('2. Basic calculator'!D18="","",'2. Basic calculator'!D18) ->  | G26: =IF('2. Basic calculator'!E18="","",'2. Basic calculator'!E18) ->  | H26: =IF(A26="","",IF(A26="lactatingtube",D26/Q26/'1. Herd Entry'!$B$2,IF('3. DDD DCD'!A26="drytube","",IF(A26="Footbath",F26/Q26/'1. Herd Entry'!$B$2,IF(B26='Sheet 5'!$A$127,D26/'1. Herd Entry'!$B$2,IF(A26="other",G26/Q26,IF(S26="kg",G26/Q26,""))))))) ->  | I26: =IF(A26="","",IF(A26="lactatingtube",D26/R26/'1. Herd Entry'!$B$2,IF('3. DDD DCD'!A26="drytube",D26/R26/'1. Herd Entry'!$B$2,IF(A26="Footbath",H26,IF(B26='Sheet 5'!$A$127,D26/R26/'1. Herd Entry'!$B$2,IF(A26="other",G26/R26,IF(S26="kg",G26/R26,""))))))) ->  | J26: =IF(A26="","",IF(A26="Footbath","Cow",IF(B26='Sheet 5'!$A$127,"Cow",IF(A26="other","PCU",IF(S26="kg","PCU",IF(S26="unit","Cow"," ")))))) -> 
A27: =IF('2. Basic calculator'!A19="","",'2. Basic calculator'!A19) ->  | B27: =IF('2. Basic calculator'!B19="","",'2. Basic calculator'!B19) ->  | D27: =IF('2. Basic calculator'!C19="","",'2. Basic calculator'!C19) ->  | E27: =IF('2. Basic calculator'!D19="","",'2. Basic calculator'!D19) ->  | G27: =IF('2. Basic calculator'!E19="","",'2. Basic calculator'!E19) ->  | H27: =IF(A27="","",IF(A27="lactatingtube",D27/Q27/'1. Herd Entry'!$B$2,IF('3. DDD DCD'!A27="drytube","",IF(A27="Footbath",F27/Q27/'1. Herd Entry'!$B$2,IF(B27='Sheet 5'!$A$127,D27/'1. Herd Entry'!$B$2,IF(A27="other",G27/Q27,IF(S27="kg",G27/Q27,""))))))) ->  | I27: =IF(A27="","",IF(A27="lactatingtube",D27/R27/'1. Herd Entry'!$B$2,IF('3. DDD DCD'!A27="drytube",D27/R27/'1. Herd Entry'!$B$2,IF(A27="Footbath",H27,IF(B27='Sheet 5'!$A$127,D27/R27/'1. Herd Entry'!$B$2,IF(A27="other",G27/R27,IF(S27="kg",G27/R27,""))))))) ->  | J27: =IF(A27="","",IF(A27="Footbath","Cow",IF(B27='Sheet 5'!$A$127,"Cow",IF(A27="other","PCU",IF(S27="kg","PCU",IF(S27="unit","Cow"," ")))))) -> 
A28: =IF('2. Basic calculator'!A20="","",'2. Basic calculator'!A20) ->  | B28: =IF('2. Basic calculator'!B20="","",'2. Basic calculator'!B20) ->  | D28: =IF('2. Basic calculator'!C20="","",'2. Basic calculator'!C20) ->  | E28: =IF('2. Basic calculator'!D20="","",'2. Basic calculator'!D20) ->  | G28: =IF('2. Basic calculator'!E20="","",'2. Basic calculator'!E20) ->  | H28: =IF(A28="","",IF(A28="lactatingtube",D28/Q28/'1. Herd Entry'!$B$2,IF('3. DDD DCD'!A28="drytube","",IF(A28="Footbath",F28/Q28/'1. Herd Entry'!$B$2,IF(B28='Sheet 5'!$A$127,D28/'1. Herd Entry'!$B$2,IF(A28="other",G28/Q28,IF(S28="kg",G28/Q28,""))))))) ->  | I28: =IF(A28="","",IF(A28="lactatingtube",D28/R28/'1. Herd Entry'!$B$2,IF('3. DDD DCD'!A28="drytube",D28/R28/'1. Herd Entry'!$B$2,IF(A28="Footbath",H28,IF(B28='Sheet 5'!$A$127,D28/R28/'1. Herd Entry'!$B$2,IF(A28="other",G28/R28,IF(S28="kg",G28/R28,""))))))) ->  | J28: =IF(A28="","",IF(A28="Footbath","Cow",IF(B28='Sheet 5'!$A$127,"Cow",IF(A28="other","PCU",IF(S28="kg","PCU",IF(S28="unit","Cow"," ")))))) -> 
A29: =IF('2. Basic calculator'!A21="","",'2. Basic calculator'!A21) ->  | B29: =IF('2. Basic calculator'!B21="","",'2. Basic calculator'!B21) ->  | D29: =IF('2. Basic calculator'!C21="","",'2. Basic calculator'!C21) ->  | E29: =IF('2. Basic calculator'!D21="","",'2. Basic calculator'!D21) ->  | G29: =IF('2. Basic calculator'!E21="","",'2. Basic calculator'!E21) ->  | H29: =IF(A29="","",IF(A29="lactatingtube",D29/Q29/'1. Herd Entry'!$B$2,IF('3. DDD DCD'!A29="drytube","",IF(A29="Footbath",F29/Q29/'1. Herd Entry'!$B$2,IF(B29='Sheet 5'!$A$127,D29/'1. Herd Entry'!$B$2,IF(A29="other",G29/Q29,IF(S29="kg",G29/Q29,""))))))) ->  | I29: =IF(A29="","",IF(A29="lactatingtube",D29/R29/'1. Herd Entry'!$B$2,IF('3. DDD DCD'!A29="drytube",D29/R29/'1. Herd Entry'!$B$2,IF(A29="Footbath",H29,IF(B29='Sheet 5'!$A$127,D29/R29/'1. Herd Entry'!$B$2,IF(A29="other",G29/R29,IF(S29="kg",G29/R29,""))))))) ->  | J29: =IF(A29="","",IF(A29="Footbath","Cow",IF(B29='Sheet 5'!$A$127,"Cow",IF(A29="other","PCU",IF(S29="kg","PCU",IF(S29="unit","Cow"," ")))))) ->  | P29: =IF(A29="","",VLOOKUP(B29,All,10,FALSE)) -> 
A30: =IF('2. Basic calculator'!A22="","",'2. Basic calculator'!A22) ->  | B30: =IF('2. Basic calculator'!B22="","",'2. Basic calculator'!B22) ->  | D30: =IF('2. Basic calculator'!C22="","",'2. Basic calculator'!C22) ->  | E30: =IF('2. Basic calculator'!D22="","",'2. Basic calculator'!D22) ->  | G30: =IF('2. Basic calculator'!E22="","",'2. Basic calculator'!E22) ->  | H30: =IF(A30="","",IF(A30="lactatingtube",D30/Q30/'1. Herd Entry'!$B$2,IF('3. DDD DCD'!A30="drytube","",IF(A30="Footbath",F30/Q30/'1. Herd Entry'!$B$2,IF(B30='Sheet 5'!$A$127,D30/'1. Herd Entry'!$B$2,IF(A30="other",G30/Q30,IF(S30="kg",G30/Q30,""))))))) ->  | I30: =IF(A30="","",IF(A30="lactatingtube",D30/R30/'1. Herd Entry'!$B$2,IF('3. DDD DCD'!A30="drytube",D30/R30/'1. Herd Entry'!$B$2,IF(A30="Footbath",H30,IF(B30='Sheet 5'!$A$127,D30/R30/'1. Herd Entry'!$B$2,IF(A30="other",G30/R30,IF(S30="kg",G30/R30,""))))))) ->  | J30: =IF(A30="","",IF(A30="Footbath","Cow",IF(B30='Sheet 5'!$A$127,"Cow",IF(A30="other","PCU",IF(S30="kg","PCU",IF(S30="unit","Cow"," ")))))) -> 
A31: =IF('2. Basic calculator'!A23="","",'2. Basic calculator'!A23) ->  | B31: =IF('2. Basic calculator'!B23="","",'2. Basic calculator'!B23) ->  | D31: =IF('2. Basic calculator'!C23="","",'2. Basic calculator'!C23) ->  | E31: =IF('2. Basic calculator'!D23="","",'2. Basic calculator'!D23) ->  | G31: =IF('2. Basic calculator'!E23="","",'2. Basic calculator'!E23) ->  | H31: =IF(A31="","",IF(A31="lactatingtube",D31/Q31/'1. Herd Entry'!$B$2,IF('3. DDD DCD'!A31="drytube","",IF(A31="Footbath",F31/Q31/'1. Herd Entry'!$B$2,IF(B31='Sheet 5'!$A$127,D31/'1. Herd Entry'!$B$2,IF(A31="other",G31/Q31,IF(S31="kg",G31/Q31,""))))))) ->  | I31: =IF(A31="","",IF(A31="lactatingtube",D31/R31/'1. Herd Entry'!$B$2,IF('3. DDD DCD'!A31="drytube",D31/R31/'1. Herd Entry'!$B$2,IF(A31="Footbath",H31,IF(B31='Sheet 5'!$A$127,D31/R31/'1. Herd Entry'!$B$2,IF(A31="other",G31/R31,IF(S31="kg",G31/R31,""))))))) ->  | J31: =IF(A31="","",IF(A31="Footbath","Cow",IF(B31='Sheet 5'!$A$127,"Cow",IF(A31="other","PCU",IF(S31="kg","PCU",IF(S31="unit","Cow"," ")))))) -> 
A32: =IF('2. Basic calculator'!A24="","",'2. Basic calculator'!A24) ->  | B32: =IF('2. Basic calculator'!B24="","",'2. Basic calculator'!B24) ->  | D32: =IF('2. Basic calculator'!C24="","",'2. Basic calculator'!C24) ->  | E32: =IF('2. Basic calculator'!D24="","",'2. Basic calculator'!D24) ->  | G32: =IF('2. Basic calculator'!E24="","",'2. Basic calculator'!E24) ->  | H32: =IF(A32="","",IF(A32="lactatingtube",D32/Q32/'1. Herd Entry'!$B$2,IF('3. DDD DCD'!A32="drytube","",IF(A32="Footbath",F32/Q32/'1. Herd Entry'!$B$2,IF(B32='Sheet 5'!$A$127,D32/'1. Herd Entry'!$B$2,IF(A32="other",G32/Q32,IF(S32="kg",G32/Q32,""))))))) ->  | I32: =IF(A32="","",IF(A32="lactatingtube",D32/R32/'1. Herd Entry'!$B$2,IF('3. DDD DCD'!A32="drytube",D32/R32/'1. Herd Entry'!$B$2,IF(A32="Footbath",H32,IF(B32='Sheet 5'!$A$127,D32/R32/'1. Herd Entry'!$B$2,IF(A32="other",G32/R32,IF(S32="kg",G32/R32,""))))))) ->  | J32: =IF(A32="","",IF(A32="Footbath","Cow",IF(B32='Sheet 5'!$A$127,"Cow",IF(A32="other","PCU",IF(S32="kg","PCU",IF(S32="unit","Cow"," ")))))) -> 
A33: =IF('2. Basic calculator'!A25="","",'2. Basic calculator'!A25) ->  | B33: =IF('2. Basic calculator'!B25="","",'2. Basic calculator'!B25) ->  | D33: =IF('2. Basic calculator'!C25="","",'2. Basic calculator'!C25) ->  | E33: =IF('2. Basic calculator'!D25="","",'2. Basic calculator'!D25) ->  | G33: =IF('2. Basic calculator'!E25="","",'2. Basic calculator'!E25) ->  | H33: =IF(A33="","",IF(A33="lactatingtube",D33/Q33/'1. Herd Entry'!$B$2,IF('3. DDD DCD'!A33="drytube","",IF(A33="Footbath",F33/Q33/'1. Herd Entry'!$B$2,IF(B33='Sheet 5'!$A$127,D33/'1. Herd Entry'!$B$2,IF(A33="other",G33/Q33,IF(S33="kg",G33/Q33,""))))))) ->  | I33: =IF(A33="","",IF(A33="lactatingtube",D33/R33/'1. Herd Entry'!$B$2,IF('3. DDD DCD'!A33="drytube",D33/R33/'1. Herd Entry'!$B$2,IF(A33="Footbath",H33,IF(B33='Sheet 5'!$A$127,D33/R33/'1. Herd Entry'!$B$2,IF(A33="other",G33/R33,IF(S33="kg",G33/R33,""))))))) ->  | J33: =IF(A33="","",IF(A33="Footbath","Cow",IF(B33='Sheet 5'!$A$127,"Cow",IF(A33="other","PCU",IF(S33="kg","PCU",IF(S33="unit","Cow"," ")))))) -> 
A34: =IF('2. Basic calculator'!A26="","",'2. Basic calculator'!A26) ->  | B34: =IF('2. Basic calculator'!B26="","",'2. Basic calculator'!B26) ->  | D34: =IF('2. Basic calculator'!C26="","",'2. Basic calculator'!C26) ->  | E34: =IF('2. Basic calculator'!D26="","",'2. Basic calculator'!D26) ->  | G34: =IF('2. Basic calculator'!E26="","",'2. Basic calculator'!E26) ->  | H34: =IF(A34="","",IF(A34="lactatingtube",D34/Q34/'1. Herd Entry'!$B$2,IF('3. DDD DCD'!A34="drytube","",IF(A34="Footbath",F34/Q34/'1. Herd Entry'!$B$2,IF(B34='Sheet 5'!$A$127,D34/'1. Herd Entry'!$B$2,IF(A34="other",G34/Q34,IF(S34="kg",G34/Q34,""))))))) ->  | I34: =IF(A34="","",IF(A34="lactatingtube",D34/R34/'1. Herd Entry'!$B$2,IF('3. DDD DCD'!A34="drytube",D34/R34/'1. Herd Entry'!$B$2,IF(A34="Footbath",H34,IF(B34='Sheet 5'!$A$127,D34/R34/'1. Herd Entry'!$B$2,IF(A34="other",G34/R34,IF(S34="kg",G34/R34,""))))))) ->  | J34: =IF(A34="","",IF(A34="Footbath","Cow",IF(B34='Sheet 5'!$A$127,"Cow",IF(A34="other","PCU",IF(S34="kg","PCU",IF(S34="unit","Cow"," ")))))) -> 
A35: =IF('2. Basic calculator'!A27="","",'2. Basic calculator'!A27) ->  | B35: =IF('2. Basic calculator'!B27="","",'2. Basic calculator'!B27) ->  | D35: =IF('2. Basic calculator'!C27="","",'2. Basic calculator'!C27) ->  | E35: =IF('2. Basic calculator'!D27="","",'2. Basic calculator'!D27) ->  | G35: =IF('2. Basic calculator'!E27="","",'2. Basic calculator'!E27) ->  | H35: =IF(A35="","",IF(A35="lactatingtube",D35/Q35/'1. Herd Entry'!$B$2,IF('3. DDD DCD'!A35="drytube","",IF(A35="Footbath",F35/Q35/'1. Herd Entry'!$B$2,IF(B35='Sheet 5'!$A$127,D35/'1. Herd Entry'!$B$2,IF(A35="other",G35/Q35,IF(S35="kg",G35/Q35,""))))))) ->  | I35: =IF(A35="","",IF(A35="lactatingtube",D35/R35/'1. Herd Entry'!$B$2,IF('3. DDD DCD'!A35="drytube",D35/R35/'1. Herd Entry'!$B$2,IF(A35="Footbath",H35,IF(B35='Sheet 5'!$A$127,D35/R35/'1. Herd Entry'!$B$2,IF(A35="other",G35/R35,IF(S35="kg",G35/R35,""))))))) ->  | J35: =IF(A35="","",IF(A35="Footbath","Cow",IF(B35='Sheet 5'!$A$127,"Cow",IF(A35="other","PCU",IF(S35="kg","PCU",IF(S35="unit","Cow"," ")))))) -> 
A36: =IF('2. Basic calculator'!A28="","",'2. Basic calculator'!A28) ->  | B36: =IF('2. Basic calculator'!B28="","",'2. Basic calculator'!B28) ->  | D36: =IF('2. Basic calculator'!C28="","",'2. Basic calculator'!C28) ->  | E36: =IF('2. Basic calculator'!D28="","",'2. Basic calculator'!D28) ->  | G36: =IF('2. Basic calculator'!E28="","",'2. Basic calculator'!E28) ->  | H36: =IF(A36="","",IF(A36="lactatingtube",D36/Q36/'1. Herd Entry'!$B$2,IF('3. DDD DCD'!A36="drytube","",IF(A36="Footbath",F36/Q36/'1. Herd Entry'!$B$2,IF(B36='Sheet 5'!$A$127,D36/'1. Herd Entry'!$B$2,IF(A36="other",G36/Q36,IF(S36="kg",G36/Q36,""))))))) ->  | I36: =IF(A36="","",IF(A36="lactatingtube",D36/R36/'1. Herd Entry'!$B$2,IF('3. DDD DCD'!A36="drytube",D36/R36/'1. Herd Entry'!$B$2,IF(A36="Footbath",H36,IF(B36='Sheet 5'!$A$127,D36/R36/'1. Herd Entry'!$B$2,IF(A36="other",G36/R36,IF(S36="kg",G36/R36,""))))))) ->  | J36: =IF(A36="","",IF(A36="Footbath","Cow",IF(B36='Sheet 5'!$A$127,"Cow",IF(A36="other","PCU",IF(S36="kg","PCU",IF(S36="unit","Cow"," ")))))) -> 
A37: =IF('2. Basic calculator'!A29="","",'2. Basic calculator'!A29) ->  | B37: =IF('2. Basic calculator'!B29="","",'2. Basic calculator'!B29) ->  | D37: =IF('2. Basic calculator'!C29="","",'2. Basic calculator'!C29) ->  | E37: =IF('2. Basic calculator'!D29="","",'2. Basic calculator'!D29) ->  | G37: =IF('2. Basic calculator'!E29="","",'2. Basic calculator'!E29) ->  | H37: =IF(A37="","",IF(A37="lactatingtube",D37/Q37/'1. Herd Entry'!$B$2,IF('3. DDD DCD'!A37="drytube","",IF(A37="Footbath",F37/Q37/'1. Herd Entry'!$B$2,IF(B37='Sheet 5'!$A$127,D37/'1. Herd Entry'!$B$2,IF(A37="other",G37/Q37,IF(S37="kg",G37/Q37,""))))))) ->  | I37: =IF(A37="","",IF(A37="lactatingtube",D37/R37/'1. Herd Entry'!$B$2,IF('3. DDD DCD'!A37="drytube",D37/R37/'1. Herd Entry'!$B$2,IF(A37="Footbath",H37,IF(B37='Sheet 5'!$A$127,D37/R37/'1. Herd Entry'!$B$2,IF(A37="other",G37/R37,IF(S37="kg",G37/R37,""))))))) ->  | J37: =IF(A37="","",IF(A37="Footbath","Cow",IF(B37='Sheet 5'!$A$127,"Cow",IF(A37="other","PCU",IF(S37="kg","PCU",IF(S37="unit","Cow"," ")))))) -> 
A38: =IF('2. Basic calculator'!A30="","",'2. Basic calculator'!A30) ->  | B38: =IF('2. Basic calculator'!B30="","",'2. Basic calculator'!B30) ->  | D38: =IF('2. Basic calculator'!C30="","",'2. Basic calculator'!C30) ->  | E38: =IF('2. Basic calculator'!D30="","",'2. Basic calculator'!D30) ->  | G38: =IF('2. Basic calculator'!E30="","",'2. Basic calculator'!E30) ->  | H38: =IF(A38="","",IF(A38="lactatingtube",D38/Q38/'1. Herd Entry'!$B$2,IF('3. DDD DCD'!A38="drytube","",IF(A38="Footbath",F38/Q38/'1. Herd Entry'!$B$2,IF(B38='Sheet 5'!$A$127,D38/'1. Herd Entry'!$B$2,IF(A38="other",G38/Q38,IF(S38="kg",G38/Q38,""))))))) ->  | I38: =IF(A38="","",IF(A38="lactatingtube",D38/R38/'1. Herd Entry'!$B$2,IF('3. DDD DCD'!A38="drytube",D38/R38/'1. Herd Entry'!$B$2,IF(A38="Footbath",H38,IF(B38='Sheet 5'!$A$127,D38/R38/'1. Herd Entry'!$B$2,IF(A38="other",G38/R38,IF(S38="kg",G38/R38,""))))))) ->  | J38: =IF(A38="","",IF(A38="Footbath","Cow",IF(B38='Sheet 5'!$A$127,"Cow",IF(A38="other","PCU",IF(S38="kg","PCU",IF(S38="unit","Cow"," ")))))) -> 
A39: =IF('2. Basic calculator'!A31="","",'2. Basic calculator'!A31) ->  | B39: =IF('2. Basic calculator'!B31="","",'2. Basic calculator'!B31) ->  | D39: =IF('2. Basic calculator'!C31="","",'2. Basic calculator'!C31) ->  | E39: =IF('2. Basic calculator'!D31="","",'2. Basic calculator'!D31) ->  | G39: =IF('2. Basic calculator'!E31="","",'2. Basic calculator'!E31) ->  | H39: =IF(A39="","",IF(A39="lactatingtube",D39/Q39/'1. Herd Entry'!$B$2,IF('3. DDD DCD'!A39="drytube","",IF(A39="Footbath",F39/Q39/'1. Herd Entry'!$B$2,IF(B39='Sheet 5'!$A$127,D39/'1. Herd Entry'!$B$2,IF(A39="other",G39/Q39,IF(S39="kg",G39/Q39,""))))))) ->  | I39: =IF(A39="","",IF(A39="lactatingtube",D39/R39/'1. Herd Entry'!$B$2,IF('3. DDD DCD'!A39="drytube",D39/R39/'1. Herd Entry'!$B$2,IF(A39="Footbath",H39,IF(B39='Sheet 5'!$A$127,D39/R39/'1. Herd Entry'!$B$2,IF(A39="other",G39/R39,IF(S39="kg",G39/R39,""))))))) ->  | J39: =IF(A39="","",IF(A39="Footbath","Cow",IF(B39='Sheet 5'!$A$127,"Cow",IF(A39="other","PCU",IF(S39="kg","PCU",IF(S39="unit","Cow"," ")))))) -> 
A40: =IF('2. Basic calculator'!A32="","",'2. Basic calculator'!A32) ->  | B40: =IF('2. Basic calculator'!B32="","",'2. Basic calculator'!B32) ->  | D40: =IF('2. Basic calculator'!C32="","",'2. Basic calculator'!C32) ->  | E40: =IF('2. Basic calculator'!D32="","",'2. Basic calculator'!D32) ->  | G40: =IF('2. Basic calculator'!E32="","",'2. Basic calculator'!E32) ->  | H40: =IF(A40="","",IF(A40="lactatingtube",D40/Q40/'1. Herd Entry'!$B$2,IF('3. DDD DCD'!A40="drytube","",IF(A40="Footbath",F40/Q40/'1. Herd Entry'!$B$2,IF(B40='Sheet 5'!$A$127,D40/'1. Herd Entry'!$B$2,IF(A40="other",G40/Q40,IF(S40="kg",G40/Q40,""))))))) ->  | I40: =IF(A40="","",IF(A40="lactatingtube",D40/R40/'1. Herd Entry'!$B$2,IF('3. DDD DCD'!A40="drytube",D40/R40/'1. Herd Entry'!$B$2,IF(A40="Footbath",H40,IF(B40='Sheet 5'!$A$127,D40/R40/'1. Herd Entry'!$B$2,IF(A40="other",G40/R40,IF(S40="kg",G40/R40,""))))))) ->  | J40: =IF(A40="","",IF(A40="Footbath","Cow",IF(B40='Sheet 5'!$A$127,"Cow",IF(A40="other","PCU",IF(S40="kg","PCU",IF(S40="unit","Cow"," ")))))) -> 
A41: =IF('2. Basic calculator'!A33="","",'2. Basic calculator'!A33) ->  | B41: =IF('2. Basic calculator'!B33="","",'2. Basic calculator'!B33) ->  | D41: =IF('2. Basic calculator'!C33="","",'2. Basic calculator'!C33) ->  | E41: =IF('2. Basic calculator'!D33="","",'2. Basic calculator'!D33) ->  | G41: =IF('2. Basic calculator'!E33="","",'2. Basic calculator'!E33) ->  | H41: =IF(A41="","",IF(A41="lactatingtube",D41/Q41/'1. Herd Entry'!$B$2,IF('3. DDD DCD'!A41="drytube","",IF(A41="Footbath",F41/Q41/'1. Herd Entry'!$B$2,IF(B41='Sheet 5'!$A$127,D41/'1. Herd Entry'!$B$2,IF(A41="other",G41/Q41,IF(S41="kg",G41/Q41,""))))))) ->  | I41: =IF(A41="","",IF(A41="lactatingtube",D41/R41/'1. Herd Entry'!$B$2,IF('3. DDD DCD'!A41="drytube",D41/R41/'1. Herd Entry'!$B$2,IF(A41="Footbath",H41,IF(B41='Sheet 5'!$A$127,D41/R41/'1. Herd Entry'!$B$2,IF(A41="other",G41/R41,IF(S41="kg",G41/R41,""))))))) ->  | J41: =IF(A41="","",IF(A41="Footbath","Cow",IF(B41='Sheet 5'!$A$127,"Cow",IF(A41="other","PCU",IF(S41="kg","PCU",IF(S41="unit","Cow"," ")))))) -> 
A42: =IF('2. Basic calculator'!A34="","",'2. Basic calculator'!A34) ->  | B42: =IF('2. Basic calculator'!B34="","",'2. Basic calculator'!B34) ->  | D42: =IF('2. Basic calculator'!C34="","",'2. Basic calculator'!C34) ->  | E42: =IF('2. Basic calculator'!D34="","",'2. Basic calculator'!D34) ->  | G42: =IF('2. Basic calculator'!E34="","",'2. Basic calculator'!E34) ->  | H42: =IF(A42="","",IF(A42="lactatingtube",D42/Q42/'1. Herd Entry'!$B$2,IF('3. DDD DCD'!A42="drytube","",IF(A42="Footbath",F42/Q42/'1. Herd Entry'!$B$2,IF(B42='Sheet 5'!$A$127,D42/'1. Herd Entry'!$B$2,IF(A42="other",G42/Q42,IF(S42="kg",G42/Q42,""))))))) ->  | I42: =IF(A42="","",IF(A42="lactatingtube",D42/R42/'1. Herd Entry'!$B$2,IF('3. DDD DCD'!A42="drytube",D42/R42/'1. Herd Entry'!$B$2,IF(A42="Footbath",H42,IF(B42='Sheet 5'!$A$127,D42/R42/'1. Herd Entry'!$B$2,IF(A42="other",G42/R42,IF(S42="kg",G42/R42,""))))))) ->  | J42: =IF(A42="","",IF(A42="Footbath","Cow",IF(B42='Sheet 5'!$A$127,"Cow",IF(A42="other","PCU",IF(S42="kg","PCU",IF(S42="unit","Cow"," ")))))) -> 
A43: =IF('2. Basic calculator'!A35="","",'2. Basic calculator'!A35) ->  | B43: =IF('2. Basic calculator'!B35="","",'2. Basic calculator'!B35) ->  | D43: =IF('2. Basic calculator'!C35="","",'2. Basic calculator'!C35) ->  | E43: =IF('2. Basic calculator'!D35="","",'2. Basic calculator'!D35) ->  | G43: =IF('2. Basic calculator'!E35="","",'2. Basic calculator'!E35) ->  | H43: =IF(A43="","",IF(A43="lactatingtube",D43/Q43/'1. Herd Entry'!$B$2,IF('3. DDD DCD'!A43="drytube","",IF(A43="Footbath",F43/Q43/'1. Herd Entry'!$B$2,IF(B43='Sheet 5'!$A$127,D43/'1. Herd Entry'!$B$2,IF(A43="other",G43/Q43,IF(S43="kg",G43/Q43,""))))))) ->  | I43: =IF(A43="","",IF(A43="lactatingtube",D43/R43/'1. Herd Entry'!$B$2,IF('3. DDD DCD'!A43="drytube",D43/R43/'1. Herd Entry'!$B$2,IF(A43="Footbath",H43,IF(B43='Sheet 5'!$A$127,D43/R43/'1. Herd Entry'!$B$2,IF(A43="other",G43/R43,IF(S43="kg",G43/R43,""))))))) ->  | J43: =IF(A43="","",IF(A43="Footbath","Cow",IF(B43='Sheet 5'!$A$127,"Cow",IF(A43="other","PCU",IF(S43="kg","PCU",IF(S43="unit","Cow"," ")))))) -> 
A44: =IF('2. Basic calculator'!A36="","",'2. Basic calculator'!A36) ->  | B44: =IF('2. Basic calculator'!B36="","",'2. Basic calculator'!B36) ->  | D44: =IF('2. Basic calculator'!C36="","",'2. Basic calculator'!C36) ->  | E44: =IF('2. Basic calculator'!D36="","",'2. Basic calculator'!D36) ->  | G44: =IF('2. Basic calculator'!E36="","",'2. Basic calculator'!E36) ->  | H44: =IF(A44="","",IF(A44="lactatingtube",D44/Q44/'1. Herd Entry'!$B$2,IF('3. DDD DCD'!A44="drytube","",IF(A44="Footbath",F44/Q44/'1. Herd Entry'!$B$2,IF(B44='Sheet 5'!$A$127,D44/'1. Herd Entry'!$B$2,IF(A44="other",G44/Q44,IF(S44="kg",G44/Q44,""))))))) ->  | I44: =IF(A44="","",IF(A44="lactatingtube",D44/R44/'1. Herd Entry'!$B$2,IF('3. DDD DCD'!A44="drytube",D44/R44/'1. Herd Entry'!$B$2,IF(A44="Footbath",H44,IF(B44='Sheet 5'!$A$127,D44/R44/'1. Herd Entry'!$B$2,IF(A44="other",G44/R44,IF(S44="kg",G44/R44,""))))))) ->  | J44: =IF(A44="","",IF(A44="Footbath","Cow",IF(B44='Sheet 5'!$A$127,"Cow",IF(A44="other","PCU",IF(S44="kg","PCU",IF(S44="unit","Cow"," ")))))) -> 
A45: =IF('2. Basic calculator'!A37="","",'2. Basic calculator'!A37) ->  | B45: =IF('2. Basic calculator'!B37="","",'2. Basic calculator'!B37) ->  | D45: =IF('2. Basic calculator'!C37="","",'2. Basic calculator'!C37) ->  | E45: =IF('2. Basic calculator'!D37="","",'2. Basic calculator'!D37) ->  | G45: =IF('2. Basic calculator'!E37="","",'2. Basic calculator'!E37) ->  | H45: =IF(A45="","",IF(A45="lactatingtube",D45/Q45/'1. Herd Entry'!$B$2,IF('3. DDD DCD'!A45="drytube","",IF(A45="Footbath",F45/Q45/'1. Herd Entry'!$B$2,IF(B45='Sheet 5'!$A$127,D45/'1. Herd Entry'!$B$2,IF(A45="other",G45/Q45,IF(S45="kg",G45/Q45,""))))))) ->  | I45: =IF(A45="","",IF(A45="lactatingtube",D45/R45/'1. Herd Entry'!$B$2,IF('3. DDD DCD'!A45="drytube",D45/R45/'1. Herd Entry'!$B$2,IF(A45="Footbath",H45,IF(B45='Sheet 5'!$A$127,D45/R45/'1. Herd Entry'!$B$2,IF(A45="other",G45/R45,IF(S45="kg",G45/R45,""))))))) ->  | J45: =IF(A45="","",IF(A45="Footbath","Cow",IF(B45='Sheet 5'!$A$127,"Cow",IF(A45="other","PCU",IF(S45="kg","PCU",IF(S45="unit","Cow"," ")))))) -> 
A46: =IF('2. Basic calculator'!A38="","",'2. Basic calculator'!A38) ->  | B46: =IF('2. Basic calculator'!B38="","",'2. Basic calculator'!B38) ->  | D46: =IF('2. Basic calculator'!C38="","",'2. Basic calculator'!C38) ->  | E46: =IF('2. Basic calculator'!D38="","",'2. Basic calculator'!D38) ->  | G46: =IF('2. Basic calculator'!E38="","",'2. Basic calculator'!E38) ->  | H46: =IF(A46="","",IF(A46="lactatingtube",D46/Q46/'1. Herd Entry'!$B$2,IF('3. DDD DCD'!A46="drytube","",IF(A46="Footbath",F46/Q46/'1. Herd Entry'!$B$2,IF(B46='Sheet 5'!$A$127,D46/'1. Herd Entry'!$B$2,IF(A46="other",G46/Q46,IF(S46="kg",G46/Q46,""))))))) ->  | I46: =IF(A46="","",IF(A46="lactatingtube",D46/R46/'1. Herd Entry'!$B$2,IF('3. DDD DCD'!A46="drytube",D46/R46/'1. Herd Entry'!$B$2,IF(A46="Footbath",H46,IF(B46='Sheet 5'!$A$127,D46/R46/'1. Herd Entry'!$B$2,IF(A46="other",G46/R46,IF(S46="kg",G46/R46,""))))))) ->  | J46: =IF(A46="","",IF(A46="Footbath","Cow",IF(B46='Sheet 5'!$A$127,"Cow",IF(A46="other","PCU",IF(S46="kg","PCU",IF(S46="unit","Cow"," ")))))) -> 
A47: =IF('2. Basic calculator'!A39="","",'2. Basic calculator'!A39) ->  | B47: =IF('2. Basic calculator'!B39="","",'2. Basic calculator'!B39) ->  | D47: =IF('2. Basic calculator'!C39="","",'2. Basic calculator'!C39) ->  | E47: =IF('2. Basic calculator'!D39="","",'2. Basic calculator'!D39) ->  | F47: =IF(B47="","",D47*VLOOKUP(B47,All,8,FALSE)) ->  | G47: =IF('2. Basic calculator'!E39="","",'2. Basic calculator'!E39) ->  | H47: =IF(A47="","",IF(A47="lactatingtube",D47/Q47/'1. Herd Entry'!$B$2,IF('3. DDD DCD'!A47="drytube","",IF(A47="Footbath",F47/Q47/'1. Herd Entry'!$B$2,IF(B47='Sheet 5'!$A$127,D47/'1. Herd Entry'!$B$2,IF(A47="other",G47/Q47,IF(S47="kg",G47/Q47,""))))))) ->  | I47: =IF(A47="","",IF(A47="lactatingtube",D47/R47/'1. Herd Entry'!$B$2,IF('3. DDD DCD'!A47="drytube",D47/R47/'1. Herd Entry'!$B$2,IF(A47="Footbath",H47,IF(B47='Sheet 5'!$A$127,D47/R47/'1. Herd Entry'!$B$2,IF(A47="other",G47/R47,IF(S47="kg",G47/R47,""))))))) ->  | J47: =IF(A47="","",IF(A47="Footbath","Cow",IF(B47='Sheet 5'!$A$127,"Cow",IF(A47="other","PCU",IF(S47="kg","PCU",IF(S47="unit","Cow"," ")))))) ->  | Q47: =IF(A47="","",VLOOKUP(B47,All,10,FALSE)) ->  | R47: =IF(A47="","",VLOOKUP(B47,All,11,FALSE)) -> 
A48: =IF('2. Basic calculator'!A40="","",'2. Basic calculator'!A40) ->  | B48: =IF('2. Basic calculator'!B40="","",'2. Basic calculator'!B40) ->  | D48: =IF('2. Basic calculator'!C40="","",'2. Basic calculator'!C40) ->  | E48: =IF('2. Basic calculator'!D40="","",'2. Basic calculator'!D40) ->  | G48: =IF('2. Basic calculator'!E40="","",'2. Basic calculator'!E40) ->  | H48: =IF(A48="","",IF(A48="lactatingtube",D48/Q48/'1. Herd Entry'!$B$2,IF('3. DDD DCD'!A48="drytube","",IF(A48="Footbath",F48/Q48/'1. Herd Entry'!$B$2,IF(B48='Sheet 5'!$A$127,D48/'1. Herd Entry'!$B$2,IF(A48="other",G48/Q48,IF(S48="kg",G48/Q48,""))))))) ->  | I48: =IF(A48="","",IF(A48="lactatingtube",D48/R48/'1. Herd Entry'!$B$2,IF('3. DDD DCD'!A48="drytube",D48/R48/'1. Herd Entry'!$B$2,IF(A48="Footbath",H48,IF(B48='Sheet 5'!$A$127,D48/R48/'1. Herd Entry'!$B$2,IF(A48="other",G48/R48,IF(S48="kg",G48/R48,""))))))) ->  | J48: =IF(A48="","",IF(A48="Footbath","Cow",IF(B48='Sheet 5'!$A$127,"Cow",IF(A48="other","PCU",IF(S48="kg","PCU",IF(S48="unit","Cow"," ")))))) -> 
A49: =IF('2. Basic calculator'!A41="","",'2. Basic calculator'!A41) ->  | B49: =IF('2. Basic calculator'!B41="","",'2. Basic calculator'!B41) ->  | D49: =IF('2. Basic calculator'!C41="","",'2. Basic calculator'!C41) ->  | E49: =IF('2. Basic calculator'!D41="","",'2. Basic calculator'!D41) ->  | G49: =IF('2. Basic calculator'!E41="","",'2. Basic calculator'!E41) ->  | H49: =IF(A49="","",IF(A49="lactatingtube",D49/Q49/'1. Herd Entry'!$B$2,IF('3. DDD DCD'!A49="drytube","",IF(A49="Footbath",F49/Q49/'1. Herd Entry'!$B$2,IF(B49='Sheet 5'!$A$127,D49/'1. Herd Entry'!$B$2,IF(A49="other",G49/Q49,IF(S49="kg",G49/Q49,""))))))) ->  | I49: =IF(A49="","",IF(A49="lactatingtube",D49/R49/'1. Herd Entry'!$B$2,IF('3. DDD DCD'!A49="drytube",D49/R49/'1. Herd Entry'!$B$2,IF(A49="Footbath",H49,IF(B49='Sheet 5'!$A$127,D49/R49/'1. Herd Entry'!$B$2,IF(A49="other",G49/R49,IF(S49="kg",G49/R49,""))))))) ->  | J49: =IF(A49="","",IF(A49="Footbath","Cow",IF(B49='Sheet 5'!$A$127,"Cow",IF(A49="other","PCU",IF(S49="kg","PCU",IF(S49="unit","Cow"," ")))))) -> 
A50: =IF('2. Basic calculator'!A42="","",'2. Basic calculator'!A42) ->  | B50: =IF('2. Basic calculator'!B42="","",'2. Basic calculator'!B42) ->  | D50: =IF('2. Basic calculator'!C42="","",'2. Basic calculator'!C42) ->  | E50: =IF('2. Basic calculator'!D42="","",'2. Basic calculator'!D42) ->  | G50: =IF('2. Basic calculator'!E42="","",'2. Basic calculator'!E42) ->  | H50: =IF(A50="","",IF(A50="lactatingtube",D50/Q50/'1. Herd Entry'!$B$2,IF('3. DDD DCD'!A50="drytube","",IF(A50="Footbath",F50/Q50/'1. Herd Entry'!$B$2,IF(B50='Sheet 5'!$A$127,D50/'1. Herd Entry'!$B$2,IF(A50="other",G50/Q50,IF(S50="kg",G50/Q50,""))))))) ->  | I50: =IF(A50="","",IF(A50="lactatingtube",D50/R50/'1. Herd Entry'!$B$2,IF('3. DDD DCD'!A50="drytube",D50/R50/'1. Herd Entry'!$B$2,IF(A50="Footbath",H50,IF(B50='Sheet 5'!$A$127,D50/R50/'1. Herd Entry'!$B$2,IF(A50="other",G50/R50,IF(S50="kg",G50/R50,""))))))) ->  | J50: =IF(A50="","",IF(A50="Footbath","Cow",IF(B50='Sheet 5'!$A$127,"Cow",IF(A50="other","PCU",IF(S50="kg","PCU",IF(S50="unit","Cow"," ")))))) -> 
A51: =IF('2. Basic calculator'!A43="","",'2. Basic calculator'!A43) ->  | B51: =IF('2. Basic calculator'!B43="","",'2. Basic calculator'!B43) ->  | D51: =IF('2. Basic calculator'!C43="","",'2. Basic calculator'!C43) ->  | E51: =IF('2. Basic calculator'!D43="","",'2. Basic calculator'!D43) ->  | G51: =IF('2. Basic calculator'!E43="","",'2. Basic calculator'!E43) ->  | H51: =IF(A51="","",IF(A51="lactatingtube",D51/Q51/'1. Herd Entry'!$B$2,IF('3. DDD DCD'!A51="drytube","",IF(A51="Footbath",F51/Q51/'1. Herd Entry'!$B$2,IF(B51='Sheet 5'!$A$127,D51/'1. Herd Entry'!$B$2,IF(A51="other",G51/Q51,IF(S51="kg",G51/Q51,""))))))) ->  | I51: =IF(A51="","",IF(A51="lactatingtube",D51/R51/'1. Herd Entry'!$B$2,IF('3. DDD DCD'!A51="drytube",D51/R51/'1. Herd Entry'!$B$2,IF(A51="Footbath",H51,IF(B51='Sheet 5'!$A$127,D51/R51/'1. Herd Entry'!$B$2,IF(A51="other",G51/R51,IF(S51="kg",G51/R51,""))))))) ->  | J51: =IF(A51="","",IF(A51="Footbath","Cow",IF(B51='Sheet 5'!$A$127,"Cow",IF(A51="other","PCU",IF(S51="kg","PCU",IF(S51="unit","Cow"," ")))))) -> 
A52: =IF('2. Basic calculator'!A44="","",'2. Basic calculator'!A44) ->  | B52: =IF('2. Basic calculator'!B44="","",'2. Basic calculator'!B44) ->  | D52: =IF('2. Basic calculator'!C44="","",'2. Basic calculator'!C44) ->  | E52: =IF('2. Basic calculator'!D44="","",'2. Basic calculator'!D44) ->  | G52: =IF('2. Basic calculator'!E44="","",'2. Basic calculator'!E44) ->  | H52: =IF(A52="","",IF(A52="lactatingtube",D52/Q52/'1. Herd Entry'!$B$2,IF('3. DDD DCD'!A52="drytube","",IF(A52="Footbath",F52/Q52/'1. Herd Entry'!$B$2,IF(B52='Sheet 5'!$A$127,D52/'1. Herd Entry'!$B$2,IF(A52="other",G52/Q52,IF(S52="kg",G52/Q52,""))))))) ->  | I52: =IF(A52="","",IF(A52="lactatingtube",D52/R52/'1. Herd Entry'!$B$2,IF('3. DDD DCD'!A52="drytube",D52/R52/'1. Herd Entry'!$B$2,IF(A52="Footbath",H52,IF(B52='Sheet 5'!$A$127,D52/R52/'1. Herd Entry'!$B$2,IF(A52="other",G52/R52,IF(S52="kg",G52/R52,""))))))) ->  | J52: =IF(A52="","",IF(A52="Footbath","Cow",IF(B52='Sheet 5'!$A$127,"Cow",IF(A52="other","PCU",IF(S52="kg","PCU",IF(S52="unit","Cow"," ")))))) -> 
A53: =IF('2. Basic calculator'!A45="","",'2. Basic calculator'!A45) ->  | B53: =IF('2. Basic calculator'!B45="","",'2. Basic calculator'!B45) ->  | D53: =IF('2. Basic calculator'!C45="","",'2. Basic calculator'!C45) ->  | E53: =IF('2. Basic calculator'!D45="","",'2. Basic calculator'!D45) ->  | G53: =IF('2. Basic calculator'!E45="","",'2. Basic calculator'!E45) ->  | H53: =IF(A53="","",IF(A53="lactatingtube",D53/Q53/'1. Herd Entry'!$B$2,IF('3. DDD DCD'!A53="drytube","",IF(A53="Footbath",F53/Q53/'1. Herd Entry'!$B$2,IF(B53='Sheet 5'!$A$127,D53/'1. Herd Entry'!$B$2,IF(A53="other",G53/Q53,IF(S53="kg",G53/Q53,""))))))) ->  | I53: =IF(A53="","",IF(A53="lactatingtube",D53/R53/'1. Herd Entry'!$B$2,IF('3. DDD DCD'!A53="drytube",D53/R53/'1. Herd Entry'!$B$2,IF(A53="Footbath",H53,IF(B53='Sheet 5'!$A$127,D53/R53/'1. Herd Entry'!$B$2,IF(A53="other",G53/R53,IF(S53="kg",G53/R53,""))))))) ->  | J53: =IF(A53="","",IF(A53="Footbath","Cow",IF(B53='Sheet 5'!$A$127,"Cow",IF(A53="other","PCU",IF(S53="kg","PCU",IF(S53="unit","Cow"," ")))))) -> 
A54: =IF('2. Basic calculator'!A46="","",'2. Basic calculator'!A46) ->  | B54: =IF('2. Basic calculator'!B46="","",'2. Basic calculator'!B46) ->  | D54: =IF('2. Basic calculator'!C46="","",'2. Basic calculator'!C46) ->  | E54: =IF('2. Basic calculator'!D46="","",'2. Basic calculator'!D46) ->  | G54: =IF('2. Basic calculator'!E46="","",'2. Basic calculator'!E46) ->  | H54: =IF(A54="","",IF(A54="lactatingtube",D54/Q54/'1. Herd Entry'!$B$2,IF('3. DDD DCD'!A54="drytube","",IF(A54="Footbath",F54/Q54/'1. Herd Entry'!$B$2,IF(B54='Sheet 5'!$A$127,D54/'1. Herd Entry'!$B$2,IF(A54="other",G54/Q54,IF(S54="kg",G54/Q54,""))))))) ->  | I54: =IF(A54="","",IF(A54="lactatingtube",D54/R54/'1. Herd Entry'!$B$2,IF('3. DDD DCD'!A54="drytube",D54/R54/'1. Herd Entry'!$B$2,IF(A54="Footbath",H54,IF(B54='Sheet 5'!$A$127,D54/R54/'1. Herd Entry'!$B$2,IF(A54="other",G54/R54,IF(S54="kg",G54/R54,""))))))) ->  | J54: =IF(A54="","",IF(A54="Footbath","Cow",IF(B54='Sheet 5'!$A$127,"Cow",IF(A54="other","PCU",IF(S54="kg","PCU",IF(S54="unit","Cow"," ")))))) -> 
A55: =IF('2. Basic calculator'!A47="","",'2. Basic calculator'!A47) ->  | B55: =IF('2. Basic calculator'!B47="","",'2. Basic calculator'!B47) ->  | D55: =IF('2. Basic calculator'!C47="","",'2. Basic calculator'!C47) ->  | E55: =IF('2. Basic calculator'!D47="","",'2. Basic calculator'!D47) ->  | G55: =IF('2. Basic calculator'!E47="","",'2. Basic calculator'!E47) ->  | H55: =IF(A55="","",IF(A55="lactatingtube",D55/Q55/'1. Herd Entry'!$B$2,IF('3. DDD DCD'!A55="drytube","",IF(A55="Footbath",F55/Q55/'1. Herd Entry'!$B$2,IF(B55='Sheet 5'!$A$127,D55/'1. Herd Entry'!$B$2,IF(A55="other",G55/Q55,IF(S55="kg",G55/Q55,""))))))) ->  | I55: =IF(A55="","",IF(A55="lactatingtube",D55/R55/'1. Herd Entry'!$B$2,IF('3. DDD DCD'!A55="drytube",D55/R55/'1. Herd Entry'!$B$2,IF(A55="Footbath",H55,IF(B55='Sheet 5'!$A$127,D55/R55/'1. Herd Entry'!$B$2,IF(A55="other",G55/R55,IF(S55="kg",G55/R55,""))))))) ->  | J55: =IF(A55="","",IF(A55="Footbath","Cow",IF(B55='Sheet 5'!$A$127,"Cow",IF(A55="other","PCU",IF(S55="kg","PCU",IF(S55="unit","Cow"," ")))))) -> 
A56: =IF('2. Basic calculator'!A48="","",'2. Basic calculator'!A48) ->  | B56: =IF('2. Basic calculator'!B48="","",'2. Basic calculator'!B48) ->  | D56: =IF('2. Basic calculator'!C48="","",'2. Basic calculator'!C48) ->  | E56: =IF('2. Basic calculator'!D48="","",'2. Basic calculator'!D48) ->  | G56: =IF('2. Basic calculator'!E48="","",'2. Basic calculator'!E48) ->  | H56: =IF(A56="","",IF(A56="lactatingtube",D56/Q56/'1. Herd Entry'!$B$2,IF('3. DDD DCD'!A56="drytube","",IF(A56="Footbath",F56/Q56/'1. Herd Entry'!$B$2,IF(B56='Sheet 5'!$A$127,D56/'1. Herd Entry'!$B$2,IF(A56="other",G56/Q56,IF(S56="kg",G56/Q56,""))))))) ->  | I56: =IF(A56="","",IF(A56="lactatingtube",D56/R56/'1. Herd Entry'!$B$2,IF('3. DDD DCD'!A56="drytube",D56/R56/'1. Herd Entry'!$B$2,IF(A56="Footbath",H56,IF(B56='Sheet 5'!$A$127,D56/R56/'1. Herd Entry'!$B$2,IF(A56="other",G56/R56,IF(S56="kg",G56/R56,""))))))) ->  | J56: =IF(A56="","",IF(A56="Footbath","Cow",IF(B56='Sheet 5'!$A$127,"Cow",IF(A56="other","PCU",IF(S56="kg","PCU",IF(S56="unit","Cow"," ")))))) -> 
A57: =IF('2. Basic calculator'!A49="","",'2. Basic calculator'!A49) ->  | B57: =IF('2. Basic calculator'!B49="","",'2. Basic calculator'!B49) ->  | D57: =IF('2. Basic calculator'!C49="","",'2. Basic calculator'!C49) ->  | E57: =IF('2. Basic calculator'!D49="","",'2. Basic calculator'!D49) ->  | G57: =IF('2. Basic calculator'!E49="","",'2. Basic calculator'!E49) ->  | H57: =IF(A57="","",IF(A57="lactatingtube",D57/Q57/'1. Herd Entry'!$B$2,IF('3. DDD DCD'!A57="drytube","",IF(A57="Footbath",F57/Q57/'1. Herd Entry'!$B$2,IF(B57='Sheet 5'!$A$127,D57/'1. Herd Entry'!$B$2,IF(A57="other",G57/Q57,IF(S57="kg",G57/Q57,""))))))) ->  | I57: =IF(A57="","",IF(A57="lactatingtube",D57/R57/'1. Herd Entry'!$B$2,IF('3. DDD DCD'!A57="drytube",D57/R57/'1. Herd Entry'!$B$2,IF(A57="Footbath",H57,IF(B57='Sheet 5'!$A$127,D57/R57/'1. Herd Entry'!$B$2,IF(A57="other",G57/R57,IF(S57="kg",G57/R57,""))))))) ->  | J57: =IF(A57="","",IF(A57="Footbath","Cow",IF(B57='Sheet 5'!$A$127,"Cow",IF(A57="other","PCU",IF(S57="kg","PCU",IF(S57="unit","Cow"," ")))))) -> 
A58: =IF('2. Basic calculator'!A50="","",'2. Basic calculator'!A50) ->  | B58: =IF('2. Basic calculator'!B50="","",'2. Basic calculator'!B50) ->  | D58: =IF('2. Basic calculator'!C50="","",'2. Basic calculator'!C50) ->  | E58: =IF('2. Basic calculator'!D50="","",'2. Basic calculator'!D50) ->  | G58: =IF('2. Basic calculator'!E50="","",'2. Basic calculator'!E50) ->  | H58: =IF(A58="","",IF(A58="lactatingtube",D58/Q58/'1. Herd Entry'!$B$2,IF('3. DDD DCD'!A58="drytube","",IF(A58="Footbath",F58/Q58/'1. Herd Entry'!$B$2,IF(B58='Sheet 5'!$A$127,D58/'1. Herd Entry'!$B$2,IF(A58="other",G58/Q58,IF(S58="kg",G58/Q58,""))))))) ->  | I58: =IF(A58="","",IF(A58="lactatingtube",D58/R58/'1. Herd Entry'!$B$2,IF('3. DDD DCD'!A58="drytube",D58/R58/'1. Herd Entry'!$B$2,IF(A58="Footbath",H58,IF(B58='Sheet 5'!$A$127,D58/R58/'1. Herd Entry'!$B$2,IF(A58="other",G58/R58,IF(S58="kg",G58/R58,""))))))) ->  | J58: =IF(A58="","",IF(A58="Footbath","Cow",IF(B58='Sheet 5'!$A$127,"Cow",IF(A58="other","PCU",IF(S58="kg","PCU",IF(S58="unit","Cow"," ")))))) -> 
A59: =IF('2. Basic calculator'!A51="","",'2. Basic calculator'!A51) ->  | B59: =IF('2. Basic calculator'!B51="","",'2. Basic calculator'!B51) ->  | D59: =IF('2. Basic calculator'!C51="","",'2. Basic calculator'!C51) ->  | E59: =IF('2. Basic calculator'!D51="","",'2. Basic calculator'!D51) ->  | G59: =IF('2. Basic calculator'!E51="","",'2. Basic calculator'!E51) ->  | H59: =IF(A59="","",IF(A59="lactatingtube",D59/Q59/'1. Herd Entry'!$B$2,IF('3. DDD DCD'!A59="drytube","",IF(A59="Footbath",F59/Q59/'1. Herd Entry'!$B$2,IF(B59='Sheet 5'!$A$127,D59/'1. Herd Entry'!$B$2,IF(A59="other",G59/Q59,IF(S59="kg",G59/Q59,""))))))) ->  | I59: =IF(A59="","",IF(A59="lactatingtube",D59/R59/'1. Herd Entry'!$B$2,IF('3. DDD DCD'!A59="drytube",D59/R59/'1. Herd Entry'!$B$2,IF(A59="Footbath",H59,IF(B59='Sheet 5'!$A$127,D59/R59/'1. Herd Entry'!$B$2,IF(A59="other",G59/R59,IF(S59="kg",G59/R59,""))))))) ->  | J59: =IF(A59="","",IF(A59="Footbath","Cow",IF(B59='Sheet 5'!$A$127,"Cow",IF(A59="other","PCU",IF(S59="kg","PCU",IF(S59="unit","Cow"," ")))))) -> 
A60: =IF('2. Basic calculator'!A52="","",'2. Basic calculator'!A52) ->  | B60: =IF('2. Basic calculator'!B52="","",'2. Basic calculator'!B52) ->  | D60: =IF('2. Basic calculator'!C52="","",'2. Basic calculator'!C52) ->  | E60: =IF('2. Basic calculator'!D52="","",'2. Basic calculator'!D52) ->  | G60: =IF('2. Basic calculator'!E52="","",'2. Basic calculator'!E52) ->  | H60: =IF(A60="","",IF(A60="lactatingtube",D60/Q60/'1. Herd Entry'!$B$2,IF('3. DDD DCD'!A60="drytube","",IF(A60="Footbath",F60/Q60/'1. Herd Entry'!$B$2,IF(B60='Sheet 5'!$A$127,D60/'1. Herd Entry'!$B$2,IF(A60="other",G60/Q60,IF(S60="kg",G60/Q60,""))))))) ->  | I60: =IF(A60="","",IF(A60="lactatingtube",D60/R60/'1. Herd Entry'!$B$2,IF('3. DDD DCD'!A60="drytube",D60/R60/'1. Herd Entry'!$B$2,IF(A60="Footbath",H60,IF(B60='Sheet 5'!$A$127,D60/R60/'1. Herd Entry'!$B$2,IF(A60="other",G60/R60,IF(S60="kg",G60/R60,""))))))) ->  | J60: =IF(A60="","",IF(A60="Footbath","Cow",IF(B60='Sheet 5'!$A$127,"Cow",IF(A60="other","PCU",IF(S60="kg","PCU",IF(S60="unit","Cow"," ")))))) -> 
A61: =IF('2. Basic calculator'!A53="","",'2. Basic calculator'!A53) ->  | B61: =IF('2. Basic calculator'!B53="","",'2. Basic calculator'!B53) ->  | D61: =IF('2. Basic calculator'!C53="","",'2. Basic calculator'!C53) ->  | E61: =IF('2. Basic calculator'!D53="","",'2. Basic calculator'!D53) ->  | G61: =IF('2. Basic calculator'!E53="","",'2. Basic calculator'!E53) ->  | H61: =IF(A61="","",IF(A61="lactatingtube",D61/Q61/'1. Herd Entry'!$B$2,IF('3. DDD DCD'!A61="drytube","",IF(A61="Footbath",F61/Q61/'1. Herd Entry'!$B$2,IF(B61='Sheet 5'!$A$127,D61/'1. Herd Entry'!$B$2,IF(A61="other",G61/Q61,IF(S61="kg",G61/Q61,""))))))) ->  | I61: =IF(A61="","",IF(A61="lactatingtube",D61/R61/'1. Herd Entry'!$B$2,IF('3. DDD DCD'!A61="drytube",D61/R61/'1. Herd Entry'!$B$2,IF(A61="Footbath",H61,IF(B61='Sheet 5'!$A$127,D61/R61/'1. Herd Entry'!$B$2,IF(A61="other",G61/R61,IF(S61="kg",G61/R61,""))))))) ->  | J61: =IF(A61="","",IF(A61="Footbath","Cow",IF(B61='Sheet 5'!$A$127,"Cow",IF(A61="other","PCU",IF(S61="kg","PCU",IF(S61="unit","Cow"," ")))))) -> 
A62: =IF('2. Basic calculator'!A54="","",'2. Basic calculator'!A54) ->  | B62: =IF('2. Basic calculator'!B54="","",'2. Basic calculator'!B54) ->  | D62: =IF('2. Basic calculator'!C54="","",'2. Basic calculator'!C54) ->  | E62: =IF('2. Basic calculator'!D54="","",'2. Basic calculator'!D54) ->  | G62: =IF('2. Basic calculator'!E54="","",'2. Basic calculator'!E54) ->  | H62: =IF(A62="","",IF(A62="lactatingtube",D62/Q62/'1. Herd Entry'!$B$2,IF('3. DDD DCD'!A62="drytube","",IF(A62="Footbath",F62/Q62/'1. Herd Entry'!$B$2,IF(B62='Sheet 5'!$A$127,D62/'1. Herd Entry'!$B$2,IF(A62="other",G62/Q62,IF(S62="kg",G62/Q62,""))))))) ->  | I62: =IF(A62="","",IF(A62="lactatingtube",D62/R62/'1. Herd Entry'!$B$2,IF('3. DDD DCD'!A62="drytube",D62/R62/'1. Herd Entry'!$B$2,IF(A62="Footbath",H62,IF(B62='Sheet 5'!$A$127,D62/R62/'1. Herd Entry'!$B$2,IF(A62="other",G62/R62,IF(S62="kg",G62/R62,""))))))) ->  | J62: =IF(A62="","",IF(A62="Footbath","Cow",IF(B62='Sheet 5'!$A$127,"Cow",IF(A62="other","PCU",IF(S62="kg","PCU",IF(S62="unit","Cow"," ")))))) -> 
A63: =IF('2. Basic calculator'!A55="","",'2. Basic calculator'!A55) ->  | B63: =IF('2. Basic calculator'!B55="","",'2. Basic calculator'!B55) ->  | D63: =IF('2. Basic calculator'!C55="","",'2. Basic calculator'!C55) ->  | E63: =IF('2. Basic calculator'!D55="","",'2. Basic calculator'!D55) ->  | G63: =IF('2. Basic calculator'!E55="","",'2. Basic calculator'!E55) ->  | H63: =IF(A63="","",IF(A63="lactatingtube",D63/Q63/'1. Herd Entry'!$B$2,IF('3. DDD DCD'!A63="drytube","",IF(A63="Footbath",F63/Q63/'1. Herd Entry'!$B$2,IF(B63='Sheet 5'!$A$127,D63/'1. Herd Entry'!$B$2,IF(A63="other",G63/Q63,IF(S63="kg",G63/Q63,""))))))) ->  | I63: =IF(A63="","",IF(A63="lactatingtube",D63/R63/'1. Herd Entry'!$B$2,IF('3. DDD DCD'!A63="drytube",D63/R63/'1. Herd Entry'!$B$2,IF(A63="Footbath",H63,IF(B63='Sheet 5'!$A$127,D63/R63/'1. Herd Entry'!$B$2,IF(A63="other",G63/R63,IF(S63="kg",G63/R63,""))))))) ->  | J63: =IF(A63="","",IF(A63="Footbath","Cow",IF(B63='Sheet 5'!$A$127,"Cow",IF(A63="other","PCU",IF(S63="kg","PCU",IF(S63="unit","Cow"," ")))))) -> 
A64: =IF('2. Basic calculator'!A56="","",'2. Basic calculator'!A56) ->  | B64: =IF('2. Basic calculator'!B56="","",'2. Basic calculator'!B56) ->  | D64: =IF('2. Basic calculator'!C56="","",'2. Basic calculator'!C56) ->  | E64: =IF('2. Basic calculator'!D56="","",'2. Basic calculator'!D56) ->  | G64: =IF('2. Basic calculator'!E56="","",'2. Basic calculator'!E56) ->  | H64: =IF(A64="","",IF(A64="lactatingtube",D64/Q64/'1. Herd Entry'!$B$2,IF('3. DDD DCD'!A64="drytube","",IF(A64="Footbath",F64/Q64/'1. Herd Entry'!$B$2,IF(B64='Sheet 5'!$A$127,D64/'1. Herd Entry'!$B$2,IF(A64="other",G64/Q64,IF(S64="kg",G64/Q64,""))))))) ->  | I64: =IF(A64="","",IF(A64="lactatingtube",D64/R64/'1. Herd Entry'!$B$2,IF('3. DDD DCD'!A64="drytube",D64/R64/'1. Herd Entry'!$B$2,IF(A64="Footbath",H64,IF(B64='Sheet 5'!$A$127,D64/R64/'1. Herd Entry'!$B$2,IF(A64="other",G64/R64,IF(S64="kg",G64/R64,""))))))) ->  | J64: =IF(A64="","",IF(A64="Footbath","Cow",IF(B64='Sheet 5'!$A$127,"Cow",IF(A64="other","PCU",IF(S64="kg","PCU",IF(S64="unit","Cow"," ")))))) -> 
A65: =IF('2. Basic calculator'!A57="","",'2. Basic calculator'!A57) ->  | B65: =IF('2. Basic calculator'!B57="","",'2. Basic calculator'!B57) ->  | D65: =IF('2. Basic calculator'!C57="","",'2. Basic calculator'!C57) ->  | E65: =IF('2. Basic calculator'!D57="","",'2. Basic calculator'!D57) ->  | G65: =IF('2. Basic calculator'!E57="","",'2. Basic calculator'!E57) ->  | H65: =IF(A65="","",IF(A65="lactatingtube",D65/Q65/'1. Herd Entry'!$B$2,IF('3. DDD DCD'!A65="drytube","",IF(A65="Footbath",F65/Q65/'1. Herd Entry'!$B$2,IF(B65='Sheet 5'!$A$127,D65/'1. Herd Entry'!$B$2,IF(A65="other",G65/Q65,IF(S65="kg",G65/Q65,""))))))) ->  | I65: =IF(A65="","",IF(A65="lactatingtube",D65/R65/'1. Herd Entry'!$B$2,IF('3. DDD DCD'!A65="drytube",D65/R65/'1. Herd Entry'!$B$2,IF(A65="Footbath",H65,IF(B65='Sheet 5'!$A$127,D65/R65/'1. Herd Entry'!$B$2,IF(A65="other",G65/R65,IF(S65="kg",G65/R65,""))))))) ->  | J65: =IF(A65="","",IF(A65="Footbath","Cow",IF(B65='Sheet 5'!$A$127,"Cow",IF(A65="other","PCU",IF(S65="kg","PCU",IF(S65="unit","Cow"," ")))))) ->  | S65: =IF(E65="","",IF(E65="ml","kg",IF(E65="grams","kg","unit"))) -> 
C70: DDD/PCU | D70: DDD/Cow | E70: DDDcritical | G70: DCD/PCU | H70: DCD/cow | I70: DCDcritical
A71: Injectable | B71: mg/kg | C71: =SUMIF($A$15:$A$65,$A71,H$15:H$65) -> 0.04252303331 | E71: =SUMIFS($H$15:$H$65,$K$15:$K$65,"CRITICAL",$A$15:$A$65,$A71) -> 0 | G71: =SUMIF($A$15:$A$65,$A71,I$15:I$65) -> 0.0121703854 | I71: =SUMIFS($I$15:$I$65,$K$15:$K$65,"CRITICAL",$A$15:$A$65,$A71) -> 0
A72: Lactatingtube | B72: DDD/DCD/ dairy cow | D72: =SUMIF($A$15:$A$65,$A72,H$15:H$65) -> 0 | E72: =SUMIFS($H$15:$H$65,$K$15:$K$65,"CRITICAL",$A$15:$A$65,$A72) -> 0 | H72: =SUMIF($A$15:$A$65,$A72,I$15:I$65) -> 0 | I72: =SUMIFS($I$15:$I$65,$K$15:$K$65,"CRITICAL",$A$15:$A$65,$A72) -> 0
A73: Drytube | B73: DCD/dairy cow | H73: =SUMIF($A$15:$A$65,$A73,I$15:I$65) -> 0 | I73: 0
A74: Footbath | B74: DDD/DCD/dairy cow | D74: =SUMIF($A$15:$A$65,$A74,H$15:H$65) -> 0 | E74: =SUMIFS($H$15:$H$65,$K$15:$K$65,"CRITICAL",$A$15:$A$65,$A74) -> 0 | H74: =SUMIF($A$15:$A$65,$A74,I$15:I$65) -> 0 | I74: 0
A75: Other | B75: mg/kg | C75: =SUMIF($A$15:$A$65,$A75,H$15:H$65) -> 0 | E75: =SUMIFS($H$15:$H$65,$K$15:$K$65,"CRITICAL",$A$15:$A$65,$A75) -> 0 | G75: =SUMIF($A$15:$A$65,$A75,I$15:I$65) -> 0 | I75: =SUMIFS($I$15:$I$65,$K$15:$K$65,"CRITICAL",$A$15:$A$65,$A75) -> 0
D78: Critically important
A79: Injectable | B79: =SUMIFS($G$15:$G$65,$K$15:$K$65,"",$A$15:$A$65,$A79) -> 0.3529411765 | D79: =SUMIFS($G$15:$G$65,$K$15:$K$65,"CRITICAL",$A$15:$A$65,$A79) -> 0
A80: Lactatingtube | B80: =SUMIFS($G$15:$G$65,$K$15:$K$65,"",$A$15:$A$65,$A80) -> 0 | D80: =SUMIFS($G$15:$G$65,$K$15:$K$65,"CRITICAL",$A$15:$A$65,$A80) -> 0
A81: Drytube | B81: 0 | D81: =SUMIFS($G$15:$G$65,$K$15:$K$65,"CRITICAL",$A$15:$A$65,$A81) -> 0
A82: Footbath | B82: 0 | D82: 0
A83: Other | B83: =SUMIFS($G$15:$G$65,$K$15:$K$65,"",$A$15:$A$65,$A83) -> 0 | D83: 0
D84: 0
A86: Metricure 500 mg Intrauterine suspension

Sheet 4. Instructions
A1: University of Nottingham Dairy AMU Calculator 4.12
A2: Disclaimer: Please note, use of this calculator is at the users own risk
A3: Instructions
A4: This calculator is designed to provide an estimation of antimicrobial usage on farms using standard EMA/ESVAC
A5: methodology. There are various caveats to using either mg/PCU (population correction unit), DDD (defined daily dose),
A6: or DCD (defined course dose) methods, and this tool aims to highlight the major differences between the systems
A8: Mg/PCU describes the mass of antibiotics used on a farm in relation to the overall mass of animals on a farm
A9: DDD describes the number of equivalent doses of antibiotic per animal or Kg on a farm
A10: DCD describes the number of equivalent courses of an antibiotic per animal or Kg on a farm
A12: Enter farm details by clicking:
A13: Dairy farms calculating mg/PCU or CHAWG metrics should enter adult dairy cow numbers ONLY.
A15: Enter all antimicrobials used on the farm over a twelve month period (including adult and dairy/dairy cross youngstock)
A16: Select a ROUTE, PRODUCT and AMOUNT of drug used by clicking:
A17: Amount used will be presented in mls, tubes, grams or units
A18: PCU (Population corrected unit) is calculated from herd entry figures, and is based on EMA/ESVAC standard weights
A19: (these weights are designed to be used at a national level, and are not always appropriate for farm level comparision)
A20: mg of product per Kg PCU is presented, including a separate figure for critically important antibiotics
A21: To delete products, highlight ROUTE, PRODUCT and AMOUNT for each row and press delete
A22: Further information including daily dose and course dose information is found on the DDD/DCD calculator
A23: To enable comparison between dairy farms, enter adult dairy cow numbers only
A24: Whilst this may result in a degree of inacuracy due to the exclusion of potential youngstock mass, it is most synonymous with
A25: current international dairy AMU methodology
A26: Further guidance can be found in the VMD PCU explanatory document
A28: Defined daily dose (DDD) and Defined course dose (DCD) is reported as follows:
B29: DDD | C29: DCD
A30: Injectable/oral products | B30: Doses/PCU | C30: Courses/PCU
A31: Lactating intrammamary products | B31: Doses/Cow | C31: Courses/Cow
A32: Dry cow intramammary products | B32: NA | C32: Courses/Cow
A33: Intrauterine solutions | B33: Doses/Cow | C33: Courses/Cow
A34: Antibiotics used in footbaths* | B34: Doses/Cow | C34: Courses/Cow
A35: *For the purposes of this calculator DDD/DCD caclulations for footbaths have been based on 100g antiobiotic powder per footbath to treat 100 adult cows
A37: EMA/ESVAC standard weights
A38: Animal | B38: Weight (kg)
A39: Dairy cow | B39: 425
A40: Slaughtered Cow | B40: 425
A41: Slaughtered Heifer | B41: 200
A42: Slaughtered Bullocks and Bulls | B42: 425
A43: Slaughtered Calves and Young Cattle | B43: 140
A45: Critically important antibiotics include category 2 (higher risk to public health) antimicrobials as defined by EMA/AMEG classification of CIAs:
A46: Fluoroquinolones
A47: 3rd generation cephalosporins
A48: 4th generation cephalosporins
A49: Colistin

Sheet Sheet 5
A1: Drug | B1: Active | C1: Route | D1: Dose mg/kg (or mg/tube) | E1: treatments (days/tubes) | F1: Dose per Tx | G1: Critical | H1: mg/unit | I1: Units | J1: DDD | K1: DCD | M1: Route
A2: Bovaclox DC Intramammary Suspen | B2: Cloxacillin | C2: DCT | D2: 750 | E2: 1 | F2: =D2 -> 750 | G2: 0 | H2: 750 | I2: Tubes | K2: 4 | M2: Injectable
A3: Bovaclox DC Xtra Intramammary Suspension | B3: Cloxacillin | C3: DCT | D3: 900 | E3: 1 | F3: 900 | G3: 0 | H3: 900 | I3: Tubes | K3: 4 | M3: Lactatingtube
A4: Cefimam DC | B4: Cefquinome | C4: DCT | D4: 150 | E4: 1 | F4: 150 | G4: 1 | H4: 150 | I4: Tubes | K4: 4 | M4: Drytube
A5: Cefshot DC 250mg Intramammary Suspension for Cattle | B5: Cephalonium | C5: DCT | D5: 250 | E5: 1 | F5: 250 | G5: 0 | H5: 250 | I5: Tubes | K5: 4 | M5: Footbath
A6: Cephaguard DC 150 mg intramammary ointment | B6: Cefquinome | C6: DCT | D6: 150 | E6: 1 | F6: =D6 -> 150 | G6: 1 | H6: 150 | I6: Tubes | K6: 4 | M6: Other
A7: Cepravin Dry Cow 250 mg Intramammary suspension | B7: Cephalonium | C7: DCT | D7: 250 | E7: 1 | F7: 250 | G7: 0 | H7: 250 | I7: Tubes | K7: 4
A8: Multishield DC | B8: Neomycin Sulphate | C8: DCT | D8: 600 | E8: 1 | F8: 600 | G8: 0 | H8: 404.4 | I8: Tubes | K8: 4 | L8: From VMD (penthamate)
A9: Noroclox DC 500mg Intramammary Suspension | B9: Cloxacillin | C9: DCT | D9: 500 | E9: 1 | F9: 500 | G9: 0 | H9: 500 | I9: Tubes | K9: 4
A10: Orbenin Dry Cow 500 mg Intramammary Suspension | B10: Cloxacillin Benzathine | C10: DCT | D10: 500 | E10: 1 | F10: 500 | G10: 0 | H10: 500 | I10: Tubes | K10: 4
A11: Orbenin Extra Dry Cow 600 mg Intramammary Suspension | B11: Cloxacillin Benzathine | C11: DCT | D11: 600 | E11: 1 | F11: 600 | G11: 0 | H11: 600 | I11: Tubes | K11: 4
A12: Ubro Red Dry Cow | B12: Framycetin Sulfate | C12: DCT | D12: 500 | E12: 1 | F12: 500 | G12: 0 | H12: 346 | I12: Tubes | K12: 4 | L12: From VMD
A13: Ubrostar Red 100 mg / 280 mg / 100 mg Intramammary Suspension for cattle | B13: Penethamate hydroiodide | C13: DCT | F13: 319.8 | G13: 0 | H13: 319.8 | I13: Tubes | K13: 4
A14: Linco-Spectin 100, 222/444.7 mg/g Powder for use in drinking water for pigs & chickens | B14: Lincomycin | C14: Footbath | D14: 64470 | E14: 1 | F14: =D14 -> 64470 | G14: 0 | H14: 644.7 | I14: grams | J14: =H14 -> 644.7 | K14: =H14 -> 644.7 | L14: Poultry
A15: Linco-Sol 400mg/g powder Footbath | B15: Lincomycin | C15: Footbath | D15: 400000 | E15: 1 | F15: 400000 | G15: 0 | H15: 400 | I15: grams | J15: 400 | K15: 400 | L15: Poultry
A16: Tylan Soluble Powder for Oral Solution Footbath | B16: Tylosin | C16: Footbath | D16: 100000 | E16: 1 | F16: =D16 -> 100000 | G16: 0 | H16: 1000 | I16: grams | J16: =H16 -> 1000 | K16: =H16 -> 1000 | L16: Poultry
A17: Albiotic 330mg/100mg Intramammary Solution | B17: Lincomycin | C17: IMM | D17: 430 | E17: 3 | F17: =D17 -> 430 | G17: 0 | H17: 430 | I17: Tubes | J17: 1 | K17: 3
A18: Ceffect LC, 75mg, Intramammary Ointment for Lactating Cows | B18: Cefquinome | C18: IMM | D18: 75 | E18: 3 | F18: 75 | G18: 1 | H18: 75 | I18: Tubes | J18: 1 | K18: 3 | Q18: Drug | R18: Active | S18: Route | T18: g/ml/tubes | U18: TOTAL mg/ml | V18: Act 1mg/ml (or mg/tube) | W18: Dose mg/kg (or mg/tube) | X18: treatments (days/tubes)
A19: Cefimam LC, 75mg Intramammary Ointment for Lactating Cows | B19: Cefquinome | C19: IMM | D19: 75 | E19: 3 | F19: =D19 -> 75 | G19: 1 | H19: 75 | I19: Tubes | J19: 1 | K19: 3 | Q19: Ceffect LC, 75mg, Intramammary Ointment for Lactating Cows | R19: Cefquinome | S19: IMM | T19: Tubes | U19: 75 | V19: 75
A20: Cobactan MC Intramammary suspension 75 mg Milking cow | B20: Cefquinome | C20: IMM | D20: 75 | E20: 3 | F20: 75 | G20: 1 | H20: 75 | I20: Tubes | J20: 1 | K20: 3
A21: Combiclav Lactating Cow Intramammary Suspension | B21: Amoxicillin | C21: IMM | D21: 200 | E21: 3 | F21: 200 | G21: 0 | H21: 200 | I21: Tubes | J21: 1 | K21: 3
A22: Duofast Intramammary Suspension | B22: Trimethoprim | C22: IMM | D22: 240 | E22: 3 | F22: 240 | G22: 0 | H22: 240 | I22: Tubes | J22: 1 | K22: 3
A23: Gamaret Intramammary Suspension | C23: IMM | F23: 354.9 | G23: 0 | H23: 333.8 | I23: Tubes | J23: 1 | K23: 3
A24: Lactaclox Intramammary Infusion | B24: Cloxacillin | C24: IMM | D24: 275 | E24: 3 | F24: 275 | G24: 0 | H24: 275 | I24: Tubes | J24: 1 | K24: 3
A25: Lincocin Forte S Intramammary Solution | B25: Lincomycin | C25: IMM | D25: 430 | E25: 3 | F25: 430 | G25: 0 | H25: 430 | I25: Tubes | J25: 1 | K25: 3
A26: Mastijet Forte | C26: IMM | F26: 460 | H26: 460 | I26: Tubes | J26: 1 | K26: 3
A27: Mastiplan LC 300mg/20mg (Cefapirin/Prednisolone), intramammary suspension for lactating cows | B27: Cephapirin | C27: IMM | D27: 300 | E27: 4 | F27: 300 | G27: 0 | H27: 300 | I27: Tubes | J27: 1 | K27: 3
A28: Multiject IMM Intramammary Suspension | B28: Procaine Penicillin | C28: IMM | D28: 300 | E28: 3 | F28: 300 | G28: 0 | H28: 261 | I28: Tubes | J28: 1 | K28: 3 | L28: From VMD
A29: Noroclav Lactating Cow Intramammary Suspension | B29: Amoxicillin | C29: IMM | D29: 200 | E29: 3 | F29: 200 | G29: 0 | H29: 200 | I29: Tubes | J29: 1 | K29: 3
A30: Orbenin L.A. 200 mg Intramammary Suspension | B30: Cloxacillin Sodium | C30: IMM | D30: 200 | E30: 3 | F30: 200 | G30: 0 | H30: 200 | I30: Tubes | J30: 1 | K30: 3
A31: Pathocef 250 mg Intramammary Suspension | B31: Cefoperazone | C31: IMM | D31: 250 | E31: 1 | F31: 250 | G31: 1 | H31: 250 | I31: Tubes | J31: 1 | K31: 3
A32: Procapen Injector 3g intramammary suspension for cattle | B32: Benzylpenicillin | C32: IMM | G32: 0 | H32: 1700 | I32: Tubes | J32: 1 | K32: 3
A33: Synulox Lactating Cow Intramammary Suspension | B33: Amoxicillin Trihydrate | C33: IMM | D33: 200 | E33: 3 | F33: 200 | G33: 0 | H33: 200 | I33: Tubes | J33: 1 | K33: 3
A34: Tetra-Delta Intramammary Suspension | B34: Dihydrostreptomycin | C34: IMM | D34: 405 | E34: 2 | F34: 405 | G34: 0 | H34: 366 | I34: Tubes | J34: 1 | K34: 3 | L34: From VMD
A35: Ubro Yellow Milking Cow Intramammary Suspension | B35: Dihydrostreptomycin | C35: IMM | D35: 329.5 | E35: 3 | F35: 329.5 | G35: 0 | H35: 329.5 | I35: Tubes | J35: 1 | K35: 3 | L35: Updated after vmd
A36: Ubrolexin Intramammary | B36: Cefalexin | C36: IMM | D36: 200 | E36: 2 | F36: 200 | G36: 0 | H36: 325.6281407 | I36: Tubes | J36: 1 | K36: 3
A37: Ubropen 600 mg intramammary suspension for lactating cows | B37: Benzylpenicillin | C37: IMM | D37: 340.8 | E37: 3 | F37: 340.8 | G37: 0 | H37: 340.8 | I37: Tubes | J37: 1 | K37: 3
A38: Advocin 180 mg/ml Solution for Injection for Cattle | B38: Danofloxacin Mesylate | C38: Injectable | D38: 6 | E38: 2 | F38: =D38*'1. Herd Entry'!$A$12 -> 2550 | G38: 1 | H38: 180 | I38: ml | J38: 1.9 | K38: 5.1
A39: Advocin 2.5% Solution for Injection | B39: Danofloxacin Mesylate | C39: Injectable | D39: 1.25 | E39: 3 | F39: =D39*'1. Herd Entry'!$A$12 -> 531.25 | G39: 1 | H39: 25 | I39: ml | J39: 1.9 | K39: 5.1
A40: Alamycin 100mg/ml Solution for Injection | B40: Oxytetracycline | C40: Injectable | D40: 4 | E40: 3 | F40: =D40*'1. Herd Entry'!$A$12 -> 1700 | G40: 0 | H40: 100 | I40: ml | J40: 6.5 | K40: 23
A41: Alamycin LA 200mg/ml Solution for Injection | B41: Oxytetracycline | C41: Injectable | D41: 20 | E41: 1 | F41: =D41*'1. Herd Entry'!$A$12 -> 8500 | G41: 0 | H41: 200 | I41: ml | J41: 6.5 | K41: 23
A42: Alamycin LA 300 Solution for Injection 300mg/ml | B42: Oxytetracycline | C42: Injectable | D42: 20 | E42: 1 | F42: =D42*'1. Herd Entry'!$A$12 -> 8500 | G42: 0 | H42: 300 | I42: ml | J42: 6.5 | K42: 23
A43: Amfipen LA 100 mg/ml suspension for injection | B43: Ampicillin | C43: Injectable | D43: 15 | E43: 2 | F43: =D43*'1. Herd Entry'!$A$12 -> 6375 | G43: 0 | H43: 100 | I43: ml | J43: 8.3 | K43: 29
A44: Amoxypen Injection 150 mg/ml Suspension for injection | B44: Amoxicillin Trihydrate | C44: Injectable | D44: 7 | E44: 5 | F44: =D44*'1. Herd Entry'!$A$12 -> 2975 | G44: 0 | H44: 150 | I44: ml | J44: 8.3 | K44: 29
A45: Amoxypen LA 150 mg/ml Suspension for injection | B45: Amoxicillin Trihydrate | C45: Injectable | D45: 15 | E45: 2 | F45: =D45*'1. Herd Entry'!$A$12 -> 6375 | G45: 0 | H45: 150 | I45: ml | J45: 8.3 | K45: 29
A46: Apotil 300 mg/ml Solution for Injection | B46: Tilmicosin | C46: Injectable | D46: 10 | E46: 1 | F46: =D46*'1. Herd Entry'!$A$12 -> 4250 | G46: 0 | H46: 300 | I46: ml | J46: 4 | K46: 9.8
A47: Baytril 100 mg/ml | B47: Enrofloxacin | C47: Injectable | D47: 5 | E47: 5 | F47: =D47*'1. Herd Entry'!$A$12 -> 2125 | G47: 1 | H47: 100 | I47: ml | J47: 4.2 | K47: 16
A48: Baytril 50 mg/ml | B48: Enrofloxacin | C48: Injectable | D48: 5 | E48: 5 | F48: =D48*'1. Herd Entry'!$A$12 -> 2125 | G48: 1 | H48: 50 | I48: ml | J48: 4.2 | K48: 16
A49: Baytril Max 100 mg/ml | B49: Enrofloxacin | C49: Injectable | D49: 7.5 | E49: 1 | F49: =D49*'1. Herd Entry'!$A$12 -> 3187.5 | G49: 1 | H49: 100 | I49: ml | J49: 4.2 | K49: 16
A50: Betamox 150mg/ml Suspension for Injection | B50: Amoxicillin | C50: Injectable | D50: 7 | E50: 5 | F50: =D50*'1. Herd Entry'!$A$12 -> 2975 | G50: 0 | H50: 150 | I50: ml | J50: 8.3 | K50: 29
A51: Betamox LA 150mg/ml Suspension for Injection | B51: Amoxicillin | C51: Injectable | D51: 15 | E51: 2 | F51: =D51*'1. Herd Entry'!$A$12 -> 6375 | G51: 0 | H51: 150 | I51: ml | J51: 8.3 | K51: 29
A52: Bimotrim Co Injection | B52: Sulfadoxine | C52: Injectable | D52: 15 | E52: 5 | F52: =D52*'1. Herd Entry'!$A$12 -> 6375 | G52: 0 | H52: 240 | I52: ml | J52: 14 | K52: 51
A53: Bimoxyl LA 150 mg/ml | B53: Amoxicillin | C53: Injectable | D53: 15 | E53: 2 | F53: =D53*'1. Herd Entry'!$A$12 -> 6375 | G53: 0 | H53: 150 | I53: ml | J53: 8.3 | K53: 29
A54: Cefenil Powder and Solvent Solution for Injection | B54: Ceftiofu | C54: Injectable | D54: 1 | E54: 5 | F54: =D54*'1. Herd Entry'!$A$12 -> 425 | G54: 1 | H54: 50 | I54: ml | J54: 1 | K54: 4
A55: Cefenil RTU 50mg/ml Suspension for Injection | B55: Ceftiofur | C55: Injectable | D55: 1 | E55: 5 | F55: =D55*'1. Herd Entry'!$A$12 -> 425 | G55: 1 | H55: 50 | I55: ml | J55: 1 | K55: 4
A56: Ceffect 25 mg/ml | B56: Cefquinome | C56: Injectable | D56: 1 | E56: 5 | F56: =D56*'1. Herd Entry'!$A$12 -> 425 | G56: 1 | H56: 25 | I56: ml | J56: 1.5 | K56: 5.5
A57: Cefokel 50 mg/ml, Suspension for Injection for Pigs and Cattle | B57: Ceftiofur | C57: Injectable | D57: 1 | E57: 5 | F57: =D57*'1. Herd Entry'!$A$12 -> 425 | G57: 1 | H57: 50 | I57: ml | J57: 1 | K57: 4
A58: Ceftiocyl 50mg/ml suspension for injection for cattle and pigs | B58: Ceftiofur | C58: Injectable | D58: 1 | E58: 5 | F58: =D58*'1. Herd Entry'!$A$12 -> 425 | G58: 1 | H58: 50 | I58: ml | J58: 1 | K58: 4
A59: Cemay 50 mg/ml | B59: Ceftiofur | C59: Injectable | D59: 1 | E59: 5 | F59: =D59*'1. Herd Entry'!$A$12 -> 425 | G59: 1 | H59: 50 | I59: ml | J59: 1 | K59: 4
A60: Ceporex 180 mg/ml Suspension for injection for cattle, cats and dogs | B60: Sodium Cefalexin | C60: Injectable | D60: 7 | E60: 5 | F60: =D60*'1. Herd Entry'!$A$12 -> 2975 | G60: 0 | H60: 180 | I60: ml | J60: 7 | K60: 32
A61: Cevaxel RTU 50 mg/ml | B61: Ceftiofur | C61: Injectable | D61: 1 | E61: 5 | F61: =D61*'1. Herd Entry'!$A$12 -> 425 | G61: 1 | H61: 50 | I61: ml | J61: 1 | K61: 4
A62: Clamoxyl Ready-to-Use 150 mg/ml suspension for injection | B62: Amoxicillin Trihydrate | C62: Injectable | D62: 7 | E62: 5 | F62: =D62*'1. Herd Entry'!$A$12 -> 2975 | G62: 0 | H62: 150 | I62: ml | J62: 8.3 | K62: 29
A63: Cobactan 2.5% Injection | B63: Cefquinome | C63: Injectable | G63: 1 | H63: 25 | I63: ml | J63: 1.5 | K63: 5.5
A64: Cobactan 4.5 % Powder and solvent for solution for injection for horse and cattle | B64: Cefquinome | C64: Injectable | D64: 1 | E64: 5 | F64: =D64*'1. Herd Entry'!$A$12 -> 425 | G64: 1 | H64: 45 | I64: ml | J64: 1.5 | K64: 5.5
A65: Combiclav Suspension for Injection | B65: Amoxicillin | C65: Injectable | D65: 8.75 | E65: 5 | F65: =D65*'1. Herd Entry'!$A$12 -> 3718.75 | G65: 0 | H65: 140 | I65: ml | J65: 8.3 | K65: 29
A66: Curacef Duo suspension for injection for cattle | B66: Ceftiofur | C66: Injectable | D66: 1 | E66: 5 | F66: =D66*'1. Herd Entry'!$A$12 -> 425 | G66: 1 | H66: 50 | I66: ml | J66: 1 | K66: 4
A67: Cyclosol® LA 200 mg/ml Solution for Injection | B67: Oxytetracycline | C67: Injectable | D67: 20 | E67: 1 | F67: =D67*'1. Herd Entry'!$A$12 -> 8500 | G67: 0 | H67: 200 | I67: ml | J67: 6.5 | K67: 23
A68: Depocillin 300 mg/ml Suspension for injection | B68: Procaine Benzylpenicillin | C68: Injectable | D68: 30 | E68: 5 | F68: =D68*'1. Herd Entry'!$A$12 -> 12750 | G68: 0 | H68: 183 | I68: ml | J68: 13 | K68: 46 | L68: From VMD
A69: Devomycin 250mg/ml Solution for Injection | B69: Streptomycin Sulphate | C69: Injectable | D69: 10 | E69: 3 | F69: =D69*'1. Herd Entry'!$A$12 -> 4250 | G69: 0 | H69: 250 | I69: ml | J69: 28 | K69: 85
A70: Diatrim® 200 mg/ml + 40 mg/ml Solution for Injection | C70: Injectable | F70: 240 | G70: 0 | H70: 240 | I70: ml | J70: 13 | K70: 36
A71: Draxxin 100 mg/ml solution for injection for cattle & pigs | B71: Tulathromycin | C71: Injectable | D71: 2.5 | E71: 1 | F71: =D71*'1. Herd Entry'!$A$12 -> 1062.5 | G71: 0 | H71: 100 | I71: ml | J71: 0.3 | K71: 2.5
A72: Duphamox 150 mg/ml Suspension for Injection | B72: Amoxicillin Trihydrate | C72: Injectable | D72: 7 | E72: 5 | F72: =D72*'1. Herd Entry'!$A$12 -> 2975 | G72: 0 | H72: 150 | I72: ml | J72: 8.3 | K72: 29
A73: Duphatrim IS Injectable Solution | B73: Sulfadiazine | C73: Injectable | D73: 15 | E73: 5 | F73: =D73*'1. Herd Entry'!$A$12 -> 6375 | G73: 0 | H73: 240 | I73: ml | J73: 13 | K73: 36
A74: Eficur | B74: Ceftiofur | C74: Injectable | D74: 1 | E74: 5 | F74: =D74*'1. Herd Entry'!$A$12 -> 425 | G74: 1 | H74: 50 | I74: ml | J74: 1 | K74: 4
A75: Engemycin 10 % (DD) Solution for injection | B75: Oxytetracycline Hydrochloride | C75: Injectable | D75: 10 | E75: 5 | F75: =D75*'1. Herd Entry'!$A$12 -> 4250 | G75: 0 | H75: 100 | I75: ml | J75: 6.5 | K75: 23
A76: Engemycin LA 200 mg/ml Solution for injection | B76: Oxytetracycline Dihydrate | C76: Injectable | D76: 20 | E76: 1 | F76: =D76*'1. Herd Entry'!$A$12 -> 8500 | G76: 0 | H76: 200 | I76: ml | J76: 6.5 | K76: 23
A77: Enroxil® 100 mg/ml Solution for Injection for Cattle and Pigs | B77: Enrofloxacin | C77: Injectable | D77: 5 | E77: 5 | F77: =D77*'1. Herd Entry'!$A$12 -> 2125 | G77: 1 | H77: 100 | I77: ml | J77: 4.2 | K77: 16
A78: Excenel 50 mg/ml Sterile Powder for Solution for Injection | B78: Ceftiofur | C78: Injectable | D78: 1 | E78: 5 | F78: =D78*'1. Herd Entry'!$A$12 -> 425 | G78: 1 | H78: 50 | I78: ml | J78: 1 | K78: 4
A79: Excenel Flow 50 mg/ml Suspension for Injection for Pigs & Cattle | B79: Ceftiofur | C79: Injectable | D79: 1 | E79: 5 | F79: =D79*'1. Herd Entry'!$A$12 -> 425 | G79: 1 | H79: 50 | I79: ml | J79: 1 | K79: 4
A80: Fenflor® 300 mg/ml Solution for Injection for Cattle | B80: Florfenicol | C80: Injectable | D80: 40 | E80: 1 | F80: =D80*'1. Herd Entry'!$A$12 -> 17000 | G80: 0 | H80: 300 | I80: ml | J80: 13 | K80: 40
A81: Fenoflox 100mg/ml Solution for Injection for Cattle and Pigs | B81: Enrofloxacin | C81: Injectable | D81: 5 | E81: 5 | F81: =D81*'1. Herd Entry'!$A$12 -> 2125 | G81: 1 | H81: 100 | I81: ml | J81: 4.2 | K81: 16
A82: Fenoflox 50mg/ml Solution for Injection for Cattle, Pigs, Dogs and Cats | B82: Enrofloxacin | C82: Injectable | D82: 5 | E82: 5 | F82: =D82*'1. Herd Entry'!$A$12 -> 2125 | G82: 1 | H82: 50 | I82: ml | J82: 4.2 | K82: 16
A83: Florkem 300 mg/ml | B83: Florfenicol | C83: Injectable | D83: 20 | E83: 2 | F83: =D83*'1. Herd Entry'!$A$12 -> 8500 | G83: 0 | H83: 300 | I83: ml | J83: 13 | K83: 40
A84: Forcyl 160 ml/ml Solution for Injection for Cattle | B84: Marbofloxacin | C84: Injectable | D84: 10 | E84: 1 | F84: =D84*'1. Herd Entry'!$A$12 -> 4250 | G84: 1 | H84: 160 | I84: ml | J84: 3.6 | K84: 8.9
A85: Framomycin 150 mg/ml Solution for Injection | B85: Framycetin Sulfate | C85: Injectable | D85: 5 | E85: 3 | F85: =D85*'1. Herd Entry'!$A$12 -> 2125 | G85: 0 | H85: 150 | I85: ml | J85: 5 | K85: 10
A86: Hexasol LA Solution for Injection for Cattle | B86: Oxytetracycline | C86: Injectable | G86: 0 | H86: 300 | I86: ml | J86: 6.5 | K86: 23
A87: Intradine | B87: Sulphadimidine | C87: Injectable | D87: 200 | E87: 3 | F87: =D87*'1. Herd Entry'!$A$12 -> 85000 | G87: 0 | H87: 308.9 | I87: ml | J87: 16 | K87: 65
A88: Kefloril 300mg/ml Solution for injection for cattle and pigs | B88: Florfenicol | C88: Injectable | D88: 40 | E88: 1 | F88: =D88*'1. Herd Entry'!$A$12 -> 17000 | G88: 0 | H88: 300 | I88: ml | J88: 13 | K88: 40
A89: Kelacyl 100 mg/ml, Solution for Injection for Cattle and Pigs | B89: Marbofloxacin | C89: Injectable | D89: 2 | E89: 5 | F89: =D89*'1. Herd Entry'!$A$12 -> 850 | G89: 1 | H89: 100 | I89: ml | J89: 3.6 | K89: 8.9
A90: Mamyzin 269.5 mg/ml | B90: Penethamate hydriodide | C90: Injectable | D90: 15 | E90: 4 | F90: =D90*'1. Herd Entry'!$A$12 -> 6375 | G90: 0 | H90: 169.785 | I90: ml | J90: 12 | K90: 38 | L90: From VMD
A91: Marbocyl™ 10% Solution for Injection | B91: Marbofloxacin | C91: Injectable | D91: 2 | E91: 5 | F91: =D91*'1. Herd Entry'!$A$12 -> 850 | G91: 1 | H91: 100 | I91: ml | J91: 3.6 | K91: 8.9
A92: Marbocyl™ 2% Solution for Injection | B92: Marbofloxacin | C92: Injectable | D92: 2 | E92: 5 | F92: =D92*'1. Herd Entry'!$A$12 -> 850 | G92: 1 | H92: 20 | I92: ml | J92: 3.6 | K92: 8.9
A93: Marbonor 100mg/ml Solution for Injection for Cattle and Pigs | B93: Marbofloxacin | C93: Injectable | D93: 2 | E93: 5 | F93: =D93*'1. Herd Entry'!$A$12 -> 850 | G93: 1 | H93: 100 | I93: ml | J93: 3.6 | K93: 8.9
A94: Marbonor SOLO 100mg/ml Solution for Injection for Cattle | B94: Marbofloxacin | C94: Injectable | D94: 8 | E94: 1 | F94: =D94*'1. Herd Entry'!$A$12 -> 3400 | G94: 1 | H94: 100 | I94: ml | J94: 3.6 | K94: 8.9
A95: Marbox 100 mg/ml | B95: Marbofloxacin | C95: Injectable | D95: 8 | E95: 1 | F95: =D95*'1. Herd Entry'!$A$12 -> 3400 | G95: 1 | H95: 100 | I95: ml | J95: 3.6 | K95: 8.9
A96: Micotil 300mg/ml Solution for Injection | B96: Tilmicosin | C96: Injectable | D96: 10 | E96: 1 | F96: =D96*'1. Herd Entry'!$A$12 -> 4250 | G96: 0 | H96: 300 | I96: ml | J96: 4 | K96: 9.8
A97: Milbotyl 300mg/ml Solution for Injection | B97: Tilmicosin | C97: Injectable | D97: 10 | E97: 1 | F97: =D97*'1. Herd Entry'!$A$12 -> 4250 | G97: 0 | H97: 300 | I97: ml | J97: 4 | K97: 9.8
A98: Naxcel 200 mg/ml Suspension for Injection for Cattle | B98: Ceftiofur | C98: Injectable | D98: 6.6 | E98: 1 | F98: =D98*'1. Herd Entry'!$A$12 -> 2805 | G98: 1 | H98: 200 | I98: ml | J98: 1 | K98: 4
A99: Norfenicol 300mg/ml Solution for Injection for Cattle and Swine | B99: Florfenico | C99: Injectable | D99: 20 | E99: 2 | F99: =D99*'1. Herd Entry'!$A$12 -> 8500 | G99: 0 | H99: 300 | I99: ml | J99: 13 | K99: 40
A100: Norobrittin 15% w/v Suspension for Injection | B100: Ampicillin | C100: Injectable | D100: 7.5 | E100: 5 | F100: =D100*'1. Herd Entry'!$A$12 -> 3187.5 | G100: 0 | H100: 150 | I100: ml | J100: 8.3 | K100: 29
A101: Norocillin Injection | B101: Penicillin G | C101: Injectable | H101: 183 | I101: ml | J101: 13 | K101: 46
A102: Noroclav Injection | B102: Amoxicillin | C102: Injectable | D102: 8.75 | E102: 5 | F102: =D102*'1. Herd Entry'!$A$12 -> 3718.75 | G102: 0 | H102: 140 | I102: ml | J102: 8.3 | K102: 29
A103: Norodine 24 Solution for Injection | B103: Trimethoprim | C103: Injectable | D103: 15 | E103: 5 | F103: =D103*'1. Herd Entry'!$A$12 -> 6375 | G103: 0 | H103: 240 | I103: ml | J103: 13 | K103: 36
A104: Norotril Max 100mg/ml Solution for Injection | B104: Enrofloxacin | C104: Injectable | D104: 7.5 | E104: 1 | F104: =D104*'1. Herd Entry'!$A$12 -> 3187.5 | G104: 1 | H104: 100 | I104: ml | J104: 4.2 | K104: 16
A105: Nuflor 300 mg/ml solution for injection for cattle and sheep | B105: Florfenicol | C105: Injectable | D105: 40 | E105: 1 | F105: =D105*'1. Herd Entry'!$A$12 -> 17000 | G105: 0 | H105: 300 | I105: ml | J105: 13 | K105: 40
A106: Nuflor Minidose 450 mg/ml solution for injection for cattle | B106: Florfenicol | C106: Injectable | D106: 40 | E106: 1 | F106: =D106*'1. Herd Entry'!$A$12 -> 17000 | G106: 0 | H106: 450 | I106: ml | J106: 13 | K106: 40
A107: Pen & Strep Suspension For Injection | B107: Procaine Penicillin | C107: Injectable | D107: 18 | E107: 3 | F107: =D107*'1. Herd Entry'!$A$12 -> 7650 | G107: 0 | H107: 372 | I107: ml | J107: 13 | K107: 46 | L107: From VMD
A108: Permacyl | B108: Penethamate Hydriodide | C108: Injectable | D108: 14.2 | E108: 4 | F108: =D108*'1. Herd Entry'!$A$12 -> 6035 | G108: 0 | H108: 182.5 | I108: ml | J108: 12 | K108: 38
A109: Pharmasin 200mg/ml solution for injection for cattle and pigs. | B109: Tylosin | C109: Injectable | D109: 10 | E109: 3 | F109: =D109*'1. Herd Entry'!$A$12 -> 4250 | G109: 0 | H109: 200 | I109: ml | J109: 13 | K109: 59
A110: Readycef 50mg/mL suspension for injection for swine and cattle | B110: Ceftiofur | C110: Injectable | D110: 1 | E110: 5 | F110: =D110*'1. Herd Entry'!$A$12 -> 425 | G110: 1 | H110: 50 | I110: ml | J110: 1 | K110: 4
A111: Resflor 300/16.5 mg/ml Solution for Injection for Cattle | B111: Florfenicol | C111: Injectable | D111: 40 | E111: 1 | F111: =D111*'1. Herd Entry'!$A$12 -> 17000 | G111: 0 | H111: 300 | I111: ml | J111: 13 | K111: 40
A112: Revozyn® RTU 400 mg/ml Suspension for Injection for Cattle | B112: Penethamate Hydriodide | C112: Injectable | H112: 400 | I112: ml | J112: 12 | K112: 38
A113: Selectan | B113: Florfenicol | C113: Injectable | D113: 20 | E113: 2 | F113: =D113*'1. Herd Entry'!$A$12 -> 8500 | G113: 0 | H113: 300 | I113: ml | J113: 13 | K113: 40
A114: Shotaflor 300mg/mL Solution for Injection for Cattle | B114: Florfenicol | C114: Injectable | D114: 40 | E114: 1 | F114: =D114*'1. Herd Entry'!$A$12 -> 17000 | G114: 0 | H114: 300 | I114: ml | J114: 13 | K114: 40
A115: Spectam injectable 10% | B115: Spectinomycin | C115: Injectable | D115: 30 | E115: 5 | F115: =D115*'1. Herd Entry'!$A$12 -> 12750 | G115: 0 | H115: 100 | I115: ml | J115: 28 | K115: 85
A116: Synulox Ready-To-Use Suspension for Injection | B116: Amoxicillin Trihydrate | C116: Injectable | D116: 7 | E116: 5 | F116: =D116*'1. Herd Entry'!$A$12 -> 2975 | G116: 0 | H116: 140 | I116: ml | J116: 8.3 | K116: 29
A117: Terramycin/LA 200 mg/ml Solution for Injection | B117: Oxytetracycline Hydrochloride | C117: Injectable | D117: 20 | E117: 1 | F117: =D117*'1. Herd Entry'!$A$12 -> 8500 | G117: 0 | H117: 200 | I117: ml | J117: 6.5 | K117: 23
A118: Tetroxy Vet 200mg/ml | B118: Oxytetracycline | C118: Injectable | D118: 20 | E118: 1 | F118: =D118*'1. Herd Entry'!$A$12 -> 8500 | G118: 0 | H118: 200 | I118: ml | J118: 6.5 | K118: 23
A119: Tribrissen 48 % suspension for injection | B119: Sulfadiazine | C119: Injectable | D119: 15 | E119: 5 | F119: =D119*'1. Herd Entry'!$A$12 -> 6375 | G119: 0 | H119: 480 | I119: ml | J119: 13 | K119: 36
A120: Trimacare 24% w/v Solution for Injection | B120: Trimethoprim | C120: Injectable | D120: 15 | E120: 5 | F120: 6375 | G120: 0 | H120: 240 | I120: ml | J120: 13 | K120: 36
A121: Tylan 200, 200mg/ml Solution for Injection | B121: Tylosin Phosphate | C121: Injectable | D121: 10 | E121: 3 | F121: =D121*'1. Herd Entry'!$A$12 -> 4250 | G121: 0 | H121: 200 | I121: ml | J121: 13 | K121: 59
A122: Ultrapen LA 30% Suspension for Injection | B122: Procaine Benzyl Penicillin | C122: Injectable | D122: 20 | E122: 1 | F122: =D122*'1. Herd Entry'!$A$12 -> 8500 | G122: 0 | H122: 183 | I122: ml | J122: 13 | K122: 46 | L122: From VMD
A123: Vetrimoxin L.A. 150mg/ml suspension for injection for cattle and pigs | B123: Amoxicillin Trihydrate | C123: Injectable | D123: 15 | E123: 2 | F123: =D123*'1. Herd Entry'!$A$12 -> 6375 | G123: 0 | H123: 150 | I123: ml | J123: 8.3 | K123: 29
A124: Zactran 150mg/ml solution for injection for cattle and pigs | B124: Gamithromycin | C124: Injectable | D124: 6 | E124: 1 | F124: =D124*'1. Herd Entry'!$A$12 -> 2550 | G124: 0 | H124: 150 | I124: ml | J124: 6 | K124: 6 | L124: FROM DATASHEET
A125: Zeleris 400 mg/ml + 5 mg/ml solution for injection for cattle | B125: Florfenicol | C125: Injectable | G125: 0 | H125: 400 | I125: ml | J125: 13 | K125: 40
A126: Zuprevo 180 mg/ml solution for injection for cattle | B126: Tildipirosin | C126: Injectable | D126: 4 | E126: 1 | F126: =D126*'1. Herd Entry'!$A$12 -> 1700 | G126: 0 | H126: 180 | I126: ml | J126: 4 | K126: 4
A127: Metricure 500 mg Intrauterine suspension | B127: Cephapirin | C127: IU | D127: 500 | E127: 1 | F127: =D127 -> 500 | G127: 0 | H127: 500 | I127: Units | J127: 1 | K127: 2
A128: Apralan Soluble Powder for Oral Solution | B128: Apramycin Sulfate | C128: Oral | D128: 40 | E128: 5 | F128: =D128*'1. Herd Entry'!$A$16 -> 5600 | G128: 0 | H128: 1000 | I128: grams | J128: 30 | K128: 150
A129: Chloromed 150mg/g Oral Powder for Calves | B129: Chlortetracycline hydrochloride | C129: Oral | G129: 0 | H129: 150 | I129: grams | J129: 22 | K129: 138
A130: Coliplus 2,000,000 IU/ml | B130: Colistin | C130: Oral | D130: 4.1665 | E130: 5 | F130: =D130*'1. Herd Entry'!$A$16 -> 583.31 | G130: 1 | H130: 98 | I130: ml | J130: 4.8 | K130: 24 | L130: FROM VMD
A131: Doxx-Sol 500mg/g powder for use in drinking water/milk replacer for pre-ruminant calves, pigs and chickens | B131: Doxycycline Hyclate | C131: Oral | D131: 10 | E131: 10 | F131: =D131*'1. Herd Entry'!$A$16 -> 1400 | G131: 0 | H131: 500 | I131: grams | J131: 10 | K131: 42
A132: Baytril 2.5% Oral Solution | B132: Enrofloxacin | C132: Oral | D132: 2.5 | E132: 3 | F132: =D132*'1. Herd Entry'!$A$16 -> 350 | G132: 1 | H132: 25 | I132: ml | J132: 4.7 | K132: 22
A133: Bimamix Oral Suspension | B133: Neomycin | C133: Oral | D133: 70 | E133: 10 | F133: =D133*'1. Herd Entry'!$A$16 -> 9800 | G133: 0 | H133: 175 | I133: ml | J133: 21 | K133: 85
A134: Parofor 70mg/g powder for use in drinking water, milk or milk replacer for pre-ruminant cattle and pigs | B134: Paromomycin sulphate | C134: Oral | D134: 50 | E134: 5 | F134: =D134*'1. Herd Entry'!$A$16 -> 7000 | G134: 0 | H134: 70 | I134: grams | J134: 38 | K134: 150
A135: Pulmotil AC | B135: Tilmicosin | C135: Oral | D135: 12.5 | E135: 5 | F135: =D135*'1. Herd Entry'!$A$16 -> 1750 | G135: 0 | H135: 250 | I135: ml | J135: 21 | K135: 85
A136: Tilmovet 250mg/ml Concentrate for Oral Solution | B136: Tilmicosin | C136: Oral | D136: 12.5 | E136: 10 | F136: =D136*'1. Herd Entry'!$A$16 -> 1750 | G136: 0 | H136: 250 | I136: ml | J136: 21 | K136: 85
A137: Tylan Soluble Powder for Oral Solution | B137: Tylosin Tartrate | C137: Oral | D137: 1000 | E137: 28 | F137: =D137 -> 1000 | G137: 0 | H137: 1000 | I137: grams | J137: 41 | K137: 414
A138: Synulox Bolus 500 mg film-coated tablet | B138: Amoxicillin Trihydrate | C138: Pessary | D138: 12.5 | E138: 6 | F138: =D138*'1. Herd Entry'!$A$16 -> 1750 | G138: 0 | H138: 400 | I138: Units | J138: 20 | K138: 81 | L138: From VMD
A139: Marbocyl™ Bolus 50 mg Tablet | B139: Marbofloxacin | C139: Pessary | D139: 1 | E139: 3 | F139: =D139*'1. Herd Entry'!$A$16 -> 140 | G139: 1 | H139: 50 | I139: Units | J139: 1 | K139: 3
A140: Occrycetin Bolus 500mg Tablet | B140: Oxytetracycline Hydrochloride | C140: Pessary | D140: 10 | E140: 10 | F140: =D140*'1. Herd Entry'!$A$16 -> 1400 | G140: 0 | H140: 500 | I140: Units | J140: 20 | K140: 111
A141: Strinacin II Tablets | B141: Sulfadiazine | C141: Pessary | D141: 30 | E141: 5 | F141: =D141*'1. Herd Entry'!$A$16 -> 4200 | G141: 0 | H141: 1200 | I141: Units | J141: 24 | K141: 114
A142: Bovocycline Pessary 2000 mg Intrauterine Tablet for Cattle | B142: Tetracycline Hydrochloride | C142: Pessary | D142: 2000 | E142: 3 | F142: =D142 -> 2000 | G142: 0 | H142: 2000 | I142: Units | J142: 28 | K142: 130
A143: Norodine Bolus Tablets | B143: Trimethoprim | C143: Pessary | D143: 30 | E143: 5 | F143: =D143*'1. Herd Entry'!$A$16 -> 4200 | G143: 0 | H143: 1200 | I143: Units | J143: 4.8 | K143: 23
